Workbook

Sheet Sublot 1
A1: v 1.14 | B1: OKLAHOMA DEPARTMENT OF TRANSPORTATION
A2: SUPERPAVE
A3: McALESTER RESIDENCY
A4: HOT MIX ASPHALT SAMPLE SHEET
P5: INFORMATION FROM MIX DESIGN:
A6: Project No. | F6: J.P. No. | J6: Contract No.
A7: Contractor | F7: Producer | J7: Plant Location
A8: SM Sample ID | F8: Mix Type | J8: Design No. | O8: 3M+ | P8: Million ESALs or PG Grade: Select from drop-down list.
B10: EXTRACTIONS AND GRADATIONS | H10: IOC | I10: 1000 | J10: TOTAL TONS for this SubLOT
B11: (OHD L-26, AASHTO T-30, T-11) | H11: 0.18 | I11: 2.659 | J11: Gse from Design | L11: (Gse >= Gsb)
B12: Time | D12: Date | H12: Specimen Wt. | I12: 2.612 | J12: Gsb from Design | O12: A | P12: Change for each sheet if A is not used on each. Rices Precision: Select from drop-down list.
B13: Temperature | D13: Lot | E13: 1 | F13: SubLot | G13: 1 | H13: 4700 | I13: 1.01 | J13: Spec. Grav. AC from Design | O13: =VLOOKUP(O12,PTable,2,FALSE) -> 0.014 | P13: Method A - Mechanical or Method B - Manual
B14: SIEVE | C14: JMF | D14: Acc. Wt. | E14: Acc. % | F14: Total Agg. | I14: MAXIMUM SPECIFIC GRAVITY (AASHTO T209)
B15: SIZE | D15: Retd. | E15: Retd. | F15: % Passing | G15: Dev. | I15: Sub-Lot No. | P15: Limits | S15: Tolerance
B16: 1 1/2" (37.5 mm) | C16: 100 | D16: 0 | E16: =IF(D16="","",ROUND(D16/$E$34*100,Tables!$E$27)) -> 0 | F16: =IF(D16="","",100-E16) -> 100 | G16: =IF(D16="","",IF(F16<$P16,ABS(F16-$P16),IF(F16>$Q16,ABS($Q16-F16),Tables!$E$27))) -> 0 | I16: Sample No. | K16: 1 | L16: | | M16: 2 | O16: 1 1/2" (37.5 mm) | P16: =IF(C16="","",C16-S16) -> 100 | Q16: =IF(C16="","",IF(C16+S16>100,100,C16+S16)) -> 100 | S16: 0
B17: 1" (25.0 mm) | C17: 100 | D17: 0 | E17: =IF(D17="","",ROUND(D17/$E$34*100,Tables!$E$27)) -> 0 | F17: 100 | G17: =IF(D17="","",IF(F17<$P17,ABS(F17-$P17),IF(F17>$Q17,ABS($Q17-F17),Tables!$E$27))) -> 0 | I17: Flask No. | K17: 2 | L17: | | M17: 4 | O17: 1" (25.0 mm) | P17: 100 | Q17: 100 | S17: 0
B18: 3/4" (19.0 mm | C18: 100 | D18: 0 | E18: =IF(D18="","",ROUND(D18/$E$34*100,Tables!$E$27)) -> 0 | F18: 100 | G18: =IF(D18="","",IF(F18<$P18,ABS(F18-$P18),IF(F18>$Q18,ABS($Q18-F18),Tables!$E$27))) -> 0 | I18: Sample Wt. | J18: (A) | K18: 1534.4 | L18: | | M18: 1576.5 | O18: 3/4" (19.0 mm | P18: 93 | Q18: 100 | S18: 7
B19: 1/2" (12.5 mm) | C19: 96 | D19: 19.8 | E19: =IF(D19="","",ROUND(D19/$E$34*100,Tables!$E$27)) -> 1 | F19: 99 | G19: =IF(D19="","",IF(F19<$P19,ABS(F19-$P19),IF(F19>$Q19,ABS($Q19-F19),Tables!$E$27))) -> 0 | I19: Calib. Wt. | J19: (B) | K19: 6179 | L19: | | M19: 6250.7 | O19: 1/2" (12.5 mm) | P19: 89 | Q19: 100 | S19: 7
B20: 3/8" (9.5 mm) | C20: 86 | D20: 120.5 | E20: =IF(D20="","",ROUND(D20/$E$34*100,Tables!$E$27)) -> 8 | F20: 92 | G20: =IF(D20="","",IF(F20<$P20,ABS(F20-$P20),IF(F20>$Q20,ABS($Q20-F20),Tables!$E$27))) -> 0 | I20: A + B | J20: (C) | K20: =IF(K18="","",+K18+K19) -> 7713.4 | L20: | | M20: =IF(M18="","",+M18+M19) -> 7827.2 | O20: 3/8" (9.5 mm) | P20: 79 | Q20: 93 | S20: 7
B21: # 4 ( 4.75 mm) | C21: 61 | D21: 382.6 | E21: =IF(D21="","",ROUND(D21/$E$34*100,Tables!$E$27)) -> 26 | F21: 74 | G21: =IF(D21="","",IF(F21<$P21,ABS(F21-$P21),IF(F21>$Q21,ABS($Q21-F21),Tables!$E$27))) -> 6 | I21: Sample + Flask + H²O (D) | K21: 7085 | L21: | | M21: 7183.1 | O21: # 4 ( 4.75 mm) | P21: 54 | Q21: 68 | S21: 7
B22: # 8 (2.36 mm) | C22: 44 | D22: 662.3 | E22: =IF(D22="","",ROUND(D22/$E$34*100,Tables!$E$27)) -> 45 | F22: 55 | G22: =IF(D22="","",IF(F22<$P22,ABS(F22-$P22),IF(F22>$Q22,ABS($Q22-F22),Tables!$E$27))) -> 6 | I22: C - D | J22: (E) | K22: =IF(K20="","",+K20-K21) -> 628.4 | L22: | | M22: =IF(M20="","",+M20-M21) -> 644.1 | O22: # 8 (2.36 mm) | P22: 39 | Q22: 49 | S22: 5
B23: # 16 ( 1.18 mm) | C23: 32 | D23: 897 | E23: =IF(D23="","",ROUND(D23/$E$34*100,Tables!$E$27)) -> 61 | F23: 39 | G23: =IF(D23="","",IF(F23<$P23,ABS(F23-$P23),IF(F23>$Q23,ABS($Q23-F23),Tables!$E$27))) -> 3 | I23: Rice's Gravity | J23: (A/E) | K23: =IF(K18>0,ROUND(K18/K22,Tables!$E$40),"") -> 2.442 | L23: | | M23: =IF(M18>0,ROUND(M18/M22,Tables!$E$40),"") -> 2.448 | O23: # 16 ( 1.18 mm) | P23: 28 | Q23: 36 | S23: 4
B24: # 30 (.600 mm) | C24: 23 | D24: 1069 | E24: =IF(D24="","",ROUND(D24/$E$34*100,Tables!$E$27)) -> 73 | F24: 27 | G24: =IF(D24="","",IF(F24<$P24,ABS(F24-$P24),IF(F24>$Q24,ABS($Q24-F24),Tables!$E$27))) -> 0 | I24: Avg. Rice Gravity (Gmm) | L24: =IF(K23="","",ROUND(AVERAGE(K23,M23),Tables!$E$41)) -> 2.445 | M24: =IF(K23="","",IF(ABS(K23-M23)>O13,"ERR","")) ->  | O24: # 30 (.600 mm) | P24: 19 | Q24: 27 | S24: 4
B25: # 50 (.300 mm) | C25: 13 | D25: 1247.8 | E25: =IF(D25="","",ROUND(D25/$E$34*100,Tables!$E$27)) -> 85 | F25: 15 | G25: =IF(D25="","",IF(F25<$P25,ABS(F25-$P25),IF(F25>$Q25,ABS($Q25-F25),Tables!$E$27))) -> 0 | I25: Eff. Spec. Grav. (Gse) | L25: =IF(K18>0,ROUND((100-F30)/((100/L24)-(F30/$I$13)),Tables!$E$42),"") -> 2.656 | O25: # 50 (.300 mm) | P25: 9 | Q25: 17 | S25: 4
B26: # 100 (.150 mm) | C26: 7 | D26: 1329.6 | E26: =IF(D26="","",ROUND(D26/$E$34*100,Tables!$E$27)) -> 91 | F26: 9 | G26: =IF(D26="","",IF(F26<$P26,ABS(F26-$P26),IF(F26>$Q26,ABS($Q26-F26),Tables!$E$27))) -> 0 | J26: =IF(K23="","",IF(ABS(K23-M23)>O13,"ERR = Precision Out of Tolerance","")) ->  | O26: # 100 (.150 mm) | P26: 4 | Q26: 10 | S26: 3
B27: # 200 (.075 mm) | C27: 4.4 | D27: 1370.3 | I27: LAB MOLDED DENSITY (OHD L-8, L-14) @ Ndes
B28: Total -200 (W3) | F28: =IF(E34="","",ROUND((E38/E34)*100,Tables!$E$28)) -> 6.1 | G28: =IF(D27="","",IF(F28<$P28,ROUND($P28-F28,Tables!$E$28),IF(F28>$Q28,ROUND(F28-$Q28,Tables!$E$28),0))) -> 0 | I28: New Gsb ( calculated ) | L28: =IF(L25="","",ROUND(IF(I11="","",(I12/I11)*L25),Tables!$E$44)) -> 2.609 | O28: Total -200 (W3) | P28: =IF(C27="","",C27-S28) -> 2.4 | Q28: =IF(C27="","",C27+S28) -> 6.4 | S28: 2
B29: % AC (P5m) | C29: 4.9 | D29: 5.3 | I29: Spec. Grav. AC | L29: =IF(K33="","",$I13) -> 1.01
B30: Corrected %AC | C30: . | F30: =IF(D29="","",ROUND(((((D29*F43)/100)-(F43-F44))/F44)*100,Tables!$E$29)) -> 5.3 | G30: =IF(D29="","",IF(ABS(C29-F30)>S30,ROUND(ABS(C29-F30),Tables!$E$33),0)) -> 0 | I30: % AC | L30: =IF(K33="","",+F30) -> 5.3 | O30: Corrected %AC | P30: =IF(C29="","",C29-S30) -> 4.5 | Q30: =IF(C29="","",C29+S30) -> 5.3 | S30: 0.4
B31: Basket (A) | E31: 3363.6 | I31: Max. Theo. Spec. Grav. | L31: =IF(L24="","",ROUND(L24,Tables!$E$45)) -> 2.445
B32: Basket + Mix (B) | E32: 4910.4 | I32: Specimen No. | K32: 1 | L32: 2
B33: Mix (B-A) | E33: =IF(E31="","",+E32-E31) -> 1546.8 | I33: A (Wt. Spec. in Air) | K33: 4703.3 | L33: 4698
B34: Extr. Aggr. Wt (C) | D34: =IF(D31="","",+D31+D32) ->  | E34: 1460 | I34: C (Wt. Spec. in Water | K34: 2701.8 | L34: 2702.8
B35: Washed Wt (D) | E35: 1374.7 | I35: B (Wt. Spec. S.S.D.) | K35: 4706 | L35: 4699.7
B36: Pan Matl (E) | E36: 4.1 | I36: B - C | K36: =IF(K33="","",+K35-K34) -> 2004.2 | L36: =IF(L33="","",+L35-L34) -> 1996.9 | M36: =IF(M33="","",+M35-M34) -> 
B37: Wt of Loss by Washing (W1) | E37: =IF(E35="","",E34-E35) -> 85.3 | I37: L.M. Spec. Grav. - Gmb | K37: =IF(K33=0,"",ROUND((K33/K36),Tables!$E$46)) -> 2.347 | L37: =IF(L33=0,"",ROUND((L33/L36),Tables!$E$46)) -> 2.353 | M37: =IF(M33=0,"",ROUND((M33/M36),Tables!$E$46)) -> 
B38: Total Agg. Passing 200 (W2) | E38: =IF(E36="","",+E37+E36) -> 89.4 | I38: Avg. L.M. Spec. Grav. | L38: =IF(K37="","",ROUND(AVERAGE(K37,L37,M37),Tables!$E$47)) -> 2.35
B39: Precision (+/- 0.2 %) | E39: =IF(E35="","",ROUND(((E35-(D27+E36))/E35)*100,Tables!$E$30)) -> 0 | I39: % L.M. Density @ Ndes | L39: =IF(L38="","",ROUND(L38/L31*100,Tables!$E$48)) -> 96.1 | M39: =IF(L39="","",IF(OR(ROUND(L39,1)<O39,ROUND(L39,1)>Q39),"ERR","")) ->  | O39: 94.5 | P39: - | Q39: 97.4 | R39: Enter %Density of Gmm req'd for lab compaction as listed for JMF on mix design.
I40: % Air Voids | L40: =IF(L39="","",ROUND(100-(L38/L31*100),Tables!$E$49)) -> 3.9 | M40: =IF(L40="","",ABS(O40-L40)) -> 0.1 | O40: =100-ROUND(AVERAGE(O39,Q39),0) -> 4 | Q40: %Air Voids Target | T40: e.g. Superpave & SMA = 4%, RIL = 3%, RBL = 2%
B41: MOISTURE & VOLATILE SAMPLE | I41: % V.M.A. | L41: =IF(L38="","",IF(L38>0,ROUND(100-L38*(100-L30)/L28,Tables!$E$50),Tables!E50)) -> 14.7 | M41: =IF(L41="","",IF(L41<O41,"ERR","")) ->  | O41: 14 | Q41: Enter required field VMA from mix design.
B42: Pan | E42: 0 | I42: =IF(M39="ERR","%L.M. Density out of range","") ->  | L42: =IF(M41="ERR"," %VMA out of range","") ->  | Q42: S.P. 708-26 VMA Field: S6=16.0, S5=15.0, S4=14.0, S3=13.0, S2=12.0
B43: Original Mix (W1m) | E43: 4910.4 | F43: =IF(E43="","",E43-E42) -> 4910.4 | I43: ROADWAY DENSITY (OHD L-14 / OHD L-45) | Q43: 2009 Specs VMA Field: S6=15.5, S5=14.5, S4=13.5, S3=12.5, S2=11.5
B44: Dry Mix (W5m) | E44: 4910.4 | F44: =IF(E44="","",E44-E42) -> 4910.4 | I44: m = | J44: 0.9892 | K44: b = | L44: 0.0273
I45: =IF(O45=""," Avg. Rice"," Max. Theo. at JMF AC") -> Max. Theo. at JMF AC | L45: =IF(L24="","",ROUND(L24,Tables!$E$52)) -> 2.445 | M45: Gmm | O45: =IF(O8="","",VLOOKUP(O8,GTable,5)) -> 85.5 | Q45: Nini Minimun Requirement
B46: SAND EQUIVALENT (AASHTO T-176) | I46: Specimen No. | K46: 1 | L46: 2 | M46: 3 | O46: =IF(O8="","",VLOOKUP(O8,GTable,7)) -> 89 | Q46: Nini Maximum Requirement
B47: S.E. No. | D47: 1 | E47: 2 | F47: =+IF(F48="","",3) ->  | I47: Station
B48: Sand Reading | I48: Expressway
B49: Clay Reading | I49: Lane
B50: Sand Equivalent | D50: =IF(D49="","",ROUNDUP(MROUND(D48/D49*100,0.1),0)) ->  | E50: =IF(E49="","",ROUNDUP(MROUND(E48/E49*100,0.1),0)) ->  | F50: =IF(F49="","",ROUNDUP(MROUND(F48/F49*100,0.1),0)) ->  | I50: Shot # 1 | K50: 145.2 | L50: 140.9 | M50: 142.3
B51: Average Sand Equivalent | E51: =IF(D50="","",ROUNDUP(MROUND(SUM(D50:F50)/COUNT(D50:F50),0.1),0)) ->  | I51: Shot # 2 | K51: 146.1 | L51: 140.5 | M51: 144.2 | O51: 45 | Q51: Minimum S.E. Requirement. See mix design or Specifications for limit by ESALs or binder type.
C52: =IF(E51=0,"",IF(E51<O51," Fails Minimum S.E. Requirements","")) ->  | I52: Shot # 3
B53: Lab Molded | C53: # of | D53: Specimen | E53: RATIO | F53: LSMG | G53: % Density | I53: Shot # 4
B54: Specimen | C54: Gyrations | D54: Height | E54: (Ht@Ndes | F54: (RATIO x | G54: (LSMG | I54: Avg. Unit Weight | K54: =IF(K51="","",AVERAGE(K50:K53)) -> 145.65 | L54: =IF(L51="","",AVERAGE(L50:L53)) -> 140.7 | M54: =IF(M51="","",AVERAGE(M50:M53)) -> 143.25
B55: @ Ndes | E55: /Ht@Nini) | F55: LSMG @ | G55: X 100/ | I55: Nuclear Core Spec. Grav. | K55: =IF(K54="","",ROUND((K54/62.4)*$J$44+$L$44,Tables!$E$53)) -> 2.336 | L55: =IF(L54="","",ROUND((L54/62.4)*$J$44+$L$44,Tables!$E$53)) -> 2.258 | M55: =IF(M54="","",ROUND((M54/62.4)*$J$44+$L$44,Tables!$E$53)) -> 2.298 | O55: =COUNT(K54:M54) -> 3 | Q55: No. of Cores
F56: Ndes) | G56: Rice's) | I56: Calc. Avg. Bulk Core Sp. Gr. | L56: =IF(K55="","",ROUND(SUM(((K55+L55+M55))/O55),Tables!$E$55)) -> 2.297
B57: Nini | C57: =VLOOKUP(O8,GTable,2,FALSE) -> 8 | D57: 123.4 | E57: =IF(D57="","",ROUND((D58/D57),Tables!$E$35)) -> 0.9254 | F57: =IF(D57="","",ROUND((E57*F58),Tables!$E$36)) -> 2.175 | G57: =IF(AND(F58<>"",OR(D57="",D58="")),"ERR",IF(D58="","",ROUND(((F57*100)/$L$24),Tables!$E$37))) -> 89 | I57: % Roadway Density | K57: =IF(K55="","",ROUND(K55/$L$45*100,Tables!$E$56)) -> 95.5 | L57: =IF(L55="","",ROUND(L55/$L$45*100,Tables!$E$56)) -> 92.4 | M57: =IF(M55="","",ROUND(M55/$L$45*100,Tables!$E$56)) -> 94
B58: Ndes | C58: =VLOOKUP(O8,GTable,3,FALSE) -> 100 | D58: 114.2 | E58: 1 | F58: =IF(D58="","",L38) -> 2.35 | G58: =IF(D58="","",ROUND(((F58*100)/$L$24),Tables!$E$38)) -> 96.1 | I58: % Avg. Roadway Density | L58: =IF(L44="","",IF(L44>0,ROUND(L56/L45*100,Tables!$E$57),"")) -> 93.9 | O58: =100-O40-2 -> 94 | Q58: 100 - (lab-molded % Air Voids) - 2, is the usual target roaday percent compaction.
B59: =(IF(G58="","",IF(OR($G$57="ERR",OR($G57>$O46,$G$57<$O$45))," Fails Nini Requirements",""))) ->  | C59: =(IF(G58="","",IF(OR($G$57="ERR",OR($G57>$O46,$G$57<$O$45))," Fails Nini Requirements",""))) ->  | J59: =IF(L58="","",IF(OR(L58>97,L58<88.1)," Fails Roadway Density Requirements","")) -> 
B61: Signature / Cert. ID | E61: /

Sheet Sublot 2
A1: ='Sublot 1'!A1 -> v 1.14 | B1: OKLAHOMA DEPARTMENT OF TRANSPORTATION
A2: SUPERPAVE
A3: ='Sublot 1'!A3:N3 -> McALESTER RESIDENCY
A4: HOT MIX ASPHALT SAMPLE SHEET
P5: INFORMATION FROM MIX DESIGN:
A6: Project No. | B6: =IF('Sublot 1'!B6="","",'Sublot 1'!B6) ->  | F6: J.P. No. | G6: =IF('Sublot 1'!G6="","",'Sublot 1'!G6) ->  | J6: Contract No. | L6: =IF('Sublot 1'!L6="","",'Sublot 1'!L6) -> 
A7: Contractor | B7: =IF('Sublot 1'!B7="","",'Sublot 1'!B7) ->  | F7: Producer | G7: =IF('Sublot 1'!G7="","",'Sublot 1'!G7) ->  | J7: Plant Location | L7: =IF('Sublot 1'!L7="","",'Sublot 1'!L7) -> 
A8: ='Sublot 1'!A8 -> SM Sample ID | F8: Mix Type | G8: =IF('Sublot 1'!G8="","",'Sublot 1'!G8) ->  | J8: Design No. | L8: =IF('Sublot 1'!L8="","",'Sublot 1'!L8) ->  | O8: ='Sublot 1'!O8 -> 3M+ | P8: Million ESALs or PG Grade: Select from drop-down list.
B10: EXTRACTIONS AND GRADATIONS | H10: IOC | I10: 1000 | J10: TOTAL TONS for this SubLOT
B11: (OHD L-26, AASHTO T-30, T-11) | H11: =IF('Sublot 1'!H11="","",'Sublot 1'!H11) -> 0.18 | I11: ='Sublot 1'!I11 -> 2.659 | J11: Gse from Design | L11: (Gse >= Gsb)
B12: Time | D12: Date | H12: Specimen Wt. | I12: ='Sublot 1'!I12 -> 2.612 | J12: Gsb from Design | O12: A | P12: Change for each sheet if A is not used on each. Rices Precision: Select from drop-down list.
B13: Temperature | D13: Lot | E13: =IF('Sublot 1'!E13="","",'Sublot 1'!E13) -> 1 | F13: SubLot | G13: 2 | H13: =IF('Sublot 1'!H13="","",'Sublot 1'!H13) -> 4700 | I13: ='Sublot 1'!I13 -> 1.01 | J13: Spec. Grav. AC from Design | O13: =VLOOKUP(O12,PTable,2,FALSE) -> 0.014 | P13: Method A - Mechanical or Method B - Manual
B14: SIEVE | C14: JMF | D14: Acc. Wt. | E14: Acc. % | F14: Total Agg. | I14: MAXIMUM SPECIFIC GRAVITY (AASHTO T209)
B15: SIZE | D15: Retd. | E15: Retd. | F15: % Passing | G15: Dev. | I15: Sub-Lot No. | P15: Limits | S15: Tolerance
B16: 1 1/2" (37.5 mm) | C16: ='Sublot 1'!C16 -> 100 | D16: 0 | E16: =IF(D16="","",ROUND(D16/$E$34*100,Tables!$E$27)) -> 0 | F16: =IF(D16="","",100-E16) -> 100 | G16: =IF(D16="","",IF(F16<$P16,ABS(F16-$P16),IF(F16>$Q16,ABS($Q16-F16),Tables!$E$27))) -> 0 | I16: Sample No. | K16: 1 | L16: | | M16: 2 | O16: 1 1/2" (37.5 mm) | P16: =IF(C16="","",C16-S16) -> 100 | Q16: =IF(C16="","",IF(C16+S16>100,100,C16+S16)) -> 100 | S16: 0
B17: 1" (25.0 mm) | C17: ='Sublot 1'!C17 -> 100 | D17: 0 | E17: =IF(D17="","",ROUND(D17/$E$34*100,Tables!$E$27)) -> 0 | F17: 100 | G17: =IF(D17="","",IF(F17<$P17,ABS(F17-$P17),IF(F17>$Q17,ABS($Q17-F17),Tables!$E$27))) -> 0 | I17: Flask No. | K17: 2 | L17: | | M17: 4 | O17: 1" (25.0 mm) | P17: 100 | Q17: 100 | S17: 0
B18: 3/4" (19.0 mm | C18: ='Sublot 1'!C18 -> 100 | D18: 0 | E18: =IF(D18="","",ROUND(D18/$E$34*100,Tables!$E$27)) -> 0 | F18: 100 | G18: =IF(D18="","",IF(F18<$P18,ABS(F18-$P18),IF(F18>$Q18,ABS($Q18-F18),Tables!$E$27))) -> 0 | I18: Sample Wt. | J18: (A) | K18: 1507.9 | L18: | | M18: 1513.2 | O18: 3/4" (19.0 mm | P18: 100 | Q18: 100 | S18: 0
B19: 1/2" (12.5 mm) | C19: ='Sublot 1'!C19 -> 96 | D19: 25.6 | E19: =IF(D19="","",ROUND(D19/$E$34*100,Tables!$E$27)) -> 2 | F19: 98 | G19: =IF(D19="","",IF(F19<$P19,ABS(F19-$P19),IF(F19>$Q19,ABS($Q19-F19),Tables!$E$27))) -> 0 | I19: Calib. Wt. | J19: (B) | K19: 6179 | L19: | | M19: 6250.7 | O19: 1/2" (12.5 mm) | P19: 89 | Q19: 100 | S19: 7
B20: 3/8" (9.5 mm) | C20: ='Sublot 1'!C20 -> 86 | D20: 176 | E20: =IF(D20="","",ROUND(D20/$E$34*100,Tables!$E$27)) -> 12 | F20: 88 | G20: =IF(D20="","",IF(F20<$P20,ABS(F20-$P20),IF(F20>$Q20,ABS($Q20-F20),Tables!$E$27))) -> 0 | I20: A + B | J20: (C) | K20: =IF(K18="","",+K18+K19) -> 7686.9 | L20: | | M20: =IF(M18="","",+M18+M19) -> 7763.9 | O20: 3/8" (9.5 mm) | P20: 79 | Q20: 93 | S20: 7
B21: # 4 ( 4.75 mm) | C21: ='Sublot 1'!C21 -> 61 | D21: 506.2 | E21: =IF(D21="","",ROUND(D21/$E$34*100,Tables!$E$27)) -> 34 | F21: 66 | G21: =IF(D21="","",IF(F21<$P21,ABS(F21-$P21),IF(F21>$Q21,ABS($Q21-F21),Tables!$E$27))) -> 0 | I21: Sample + Flask + H²O (D) | K21: 7076.2 | L21: | | M21: 7151.5 | O21: # 4 ( 4.75 mm) | P21: 54 | Q21: 68 | S21: 7
B22: # 8 (2.36 mm) | C22: ='Sublot 1'!C22 -> 44 | D22: 807.4 | E22: =IF(D22="","",ROUND(D22/$E$34*100,Tables!$E$27)) -> 55 | F22: 45 | G22: =IF(D22="","",IF(F22<$P22,ABS(F22-$P22),IF(F22>$Q22,ABS($Q22-F22),Tables!$E$27))) -> 0 | I22: C - D | J22: (E) | K22: =IF(K20="","",+K20-K21) -> 610.7 | L22: | | M22: =IF(M20="","",+M20-M21) -> 612.4 | O22: # 8 (2.36 mm) | P22: 39 | Q22: 49 | S22: 5
B23: # 16 ( 1.18 mm) | C23: ='Sublot 1'!C23 -> 32 | D23: 995.3 | E23: =IF(D23="","",ROUND(D23/$E$34*100,Tables!$E$27)) -> 68 | F23: 32 | G23: =IF(D23="","",IF(F23<$P23,ABS(F23-$P23),IF(F23>$Q23,ABS($Q23-F23),Tables!$E$27))) -> 0 | I23: Rice's Gravity | J23: (A/E) | K23: =IF(K18>0,ROUND(K18/K22,Tables!$E$40),"") -> 2.469 | L23: | | M23: =IF(M18>0,ROUND(M18/M22,Tables!$E$40),"") -> 2.471 | O23: # 16 ( 1.18 mm) | P23: 28 | Q23: 36 | S23: 4
B24: # 30 (.600 mm) | C24: ='Sublot 1'!C24 -> 23 | D24: 1128.3 | E24: =IF(D24="","",ROUND(D24/$E$34*100,Tables!$E$27)) -> 77 | F24: 23 | G24: =IF(D24="","",IF(F24<$P24,ABS(F24-$P24),IF(F24>$Q24,ABS($Q24-F24),Tables!$E$27))) -> 0 | I24: Avg. Rice Gravity (Gmm) | L24: =IF(K23="","",ROUND(AVERAGE(K23,M23),Tables!$E$41)) -> 2.47 | M24: =IF(K23="","",IF(ABS(K23-M23)>O13,"ERR","")) ->  | O24: # 30 (.600 mm) | P24: 19 | Q24: 27 | S24: 4
B25: # 50 (.300 mm) | C25: ='Sublot 1'!C25 -> 13 | D25: 1275.2 | E25: =IF(D25="","",ROUND(D25/$E$34*100,Tables!$E$27)) -> 87 | F25: 13 | G25: =IF(D25="","",IF(F25<$P25,ABS(F25-$P25),IF(F25>$Q25,ABS($Q25-F25),Tables!$E$27))) -> 0 | I25: Eff. Spec. Grav. (Gse) | L25: =IF(K18>0,ROUND((100-F30)/((100/L24)-(F30/$I$13)),Tables!$E$42),"") -> 2.664 | O25: # 50 (.300 mm) | P25: 9 | Q25: 17 | S25: 4
B26: # 100 (.150 mm) | C26: ='Sublot 1'!C26 -> 7 | D26: 1347.2 | E26: =IF(D26="","",ROUND(D26/$E$34*100,Tables!$E$27)) -> 92 | F26: 8 | G26: =IF(D26="","",IF(F26<$P26,ABS(F26-$P26),IF(F26>$Q26,ABS($Q26-F26),Tables!$E$27))) -> 0 | J26: =IF(K23="","",IF(ABS(K23-M23)>O13,"ERR = Precision Out of Tolerance","")) ->  | O26: # 100 (.150 mm) | P26: 4 | Q26: 10 | S26: 3
B27: # 200 (.075 mm) | C27: ='Sublot 1'!C27 -> 4.4 | D27: 1386 | I27: LAB MOLDED DENSITY (OHD L-8, L-14) @ Ndes
B28: Total -200 (W3) | F28: =IF(E34="","",ROUND((E38/E34)*100,Tables!$E$28)) -> 5.6 | G28: =IF(D27="","",IF(F28<$P28,ROUND($P28-F28,Tables!$E$28),IF(F28>$Q28,ROUND(F28-$Q28,Tables!$E$28),0))) -> 0 | I28: New Gsb ( calculated ) | L28: =IF(L25="","",ROUND(IF(I11="","",(I12/I11)*L25),Tables!$E$44)) -> 2.617 | O28: Total -200 (W3) | P28: =IF(C27="","",C27-S28) -> 2.4 | Q28: =IF(C27="","",C27+S28) -> 6.4 | S28: 2
B29: % AC (P5m) | C29: ='Sublot 1'!C29 -> 4.9 | D29: 4.81 | I29: Spec. Grav. AC | L29: =IF(K33="","",$I13) -> 1.01
B30: Corrected %AC | C30: . | F30: =IF(D29="","",ROUND(((((D29*F43)/100)-(F43-F44))/F44)*100,Tables!$E$29)) -> 4.8 | G30: =IF(D29="","",IF(ABS(C29-F30)>S30,ROUND(ABS(C29-F30),Tables!$E$33),0)) -> 0 | I30: % AC | L30: =IF(K33="","",+F30) -> 4.8 | O30: Corrected %AC | P30: =IF(C29="","",C29-S30) -> 4.5 | Q30: =IF(C29="","",C29+S30) -> 5.3 | S30: 0.4
B31: Basket (A) | E31: 3362.5 | I31: Max. Theo. Spec. Grav. | L31: =IF(D29="","",IF($L$24="",ROUND((100/(($F$30/$I$13)+(100-$F$30)/#REF!)),Tables!$E$45),L24)) -> 2.47
B32: Basket + Mix (B) | E32: 4710.4 | I32: Specimen No. | K32: 1 | L32: 2
B33: Mix (B-A) | E33: =IF(E31="","",+E32-E31) -> 1347.9 | I33: A (Wt. Spec. in Air) | K33: 4700.3 | L33: 4704.8
B34: Extr. Aggr. Wt (C) | D34: =IF(D31="","",+D31+D32) ->  | E34: 1468.9 | I34: C (Wt. Spec. in Water | K34: 2719.6 | L34: 2722.4
B35: Washed Wt (D) | E35: 1390 | I35: B (Wt. Spec. S.S.D.) | K35: 4705.3 | L35: 4709
B36: Pan Matl (E) | E36: 3.6 | I36: B - C | K36: =IF(K33="","",+K35-K34) -> 1985.7 | L36: =IF(L33="","",+L35-L34) -> 1986.6 | M36: =IF(M33="","",+M35-M34) -> 
B37: Wt of Loss by Washing (W1) | E37: =IF(E35="","",E34-E35) -> 78.9 | I37: L.M. Spec. Grav. - Gmb | K37: =IF(K33=0,"",ROUND((K33/K36),Tables!$E$46)) -> 2.367 | L37: =IF(L33=0,"",ROUND((L33/L36),Tables!$E$46)) -> 2.368 | M37: =IF(M33=0,"",ROUND((M33/M36),Tables!$E$46)) -> 
B38: Total Agg. Passing 200 (W2) | E38: =IF(E36="","",+E37+E36) -> 82.5 | I38: Avg. L.M. Spec. Grav. | L38: =IF(K37="","",ROUND(AVERAGE(K37,L37,M37),Tables!$E$47)) -> 2.368
B39: Precision (+/- 0.2 %) | E39: =IF(E35="","",ROUND(((E35-(D27+E36))/E35)*100,Tables!$E$30)) -> 0 | I39: % L.M. Density @ Ndes | L39: =IF(L38="","",ROUND(L38/L31*100,Tables!$E$48)) -> 95.9 | M39: =IF(L39="","",IF(OR(ROUND(L39,1)<O39,ROUND(L39,1)>Q39),"ERR","")) ->  | O39: ='Sublot 1'!O39 -> 94.5 | P39: - | Q39: ='Sublot 1'!Q39 -> 97.4 | R39: Enter %Density of GMM reqd. as listed on JMF
I40: % Air Voids | L40: =IF(L39="","",ROUND(100-(L38/L31*100),Tables!$E$49)) -> 4.1 | M40: =IF(L40="","",ABS(O40-L40)) -> 0.1 | O40: ='Sublot 1'!O40 -> 4 | Q40: %Air Voids Target | T40: (Superpave, SMA) = 4%, (RBL) = 2%
B41: MOISTURE & VOLATILE SAMPLE | I41: % V.M.A. | L41: =IF(L38="","",IF(L38>0,ROUND(100-L38*(100-L30)/L28,Tables!$E$50),Tables!E50)) -> 13.9 | M41: =IF(L41="","",IF(L41<O41,"ERR","")) -> ERR | O41: ='Sublot 1'!O41 -> 14 | Q41: Enter required field VMA from mix design.
B42: Pan | I42: =IF(M39="ERR","%L.M. Density out of range","") ->  | L42: =IF(M41="ERR"," %VMA out of range","") -> %VMA out of range
B43: Original Mix (W1m) | E43: 4710.4 | F43: =IF(E43="","",E43-E42) -> 4710.4 | I43: ROADWAY DENSITY (OHD L-14 / OHD L-45)
B44: Dry Mix (W5m) | E44: 4710.4 | F44: =IF(E44="","",E44-E42) -> 4710.4 | I44: m = | J44: 0.9892 | K44: b = | L44: 0.0273
I45: =IF(O45=""," Avg. Rice"," Max. Theo. at JMF AC") -> Max. Theo. at JMF AC | L45: =IF(L24="","",ROUND(L24,Tables!$E$52)) -> 2.47 | M45: Gmm | O45: =VLOOKUP(O8,GTable,5) -> 85.5 | P45: Nini Minimun Requirement
B46: SAND EQUIVALENT (AASHTO T-176) | I46: Specimen No. | K46: 1 | L46: 2 | M46: 3 | O46: =VLOOKUP(O8,GTable,7) -> 89 | P46: Nini Maximum Requirement
B47: S.E. No. | D47: 1 | E47: 2 | F47: =+IF(F48="","",3) ->  | I47: Station
B48: Sand Reading | I48: Expressway
B49: Clay Reading | H49: =IF(O49=1,"OHD L-14","") ->  | I49: Lane
B50: Sand Equivalent | D50: =IF(D49="","",ROUNDUP(MROUND(D48/D49*100,0.1),0)) ->  | E50: =IF(E49="","",ROUNDUP(MROUND(E48/E49*100,0.1),0)) ->  | F50: =IF(F49="","",ROUNDUP(MROUND(F48/F49*100,0.1),0)) ->  | I50: Shot # 1 | K50: 140.3 | L50: 141.5 | M50: 140.5
B51: Average Sand Equivalent | E51: =IF(D50="","",ROUNDUP(MROUND(SUM(D50:F50)/COUNT(D50:F50),0.1),0)) ->  | I51: Shot # 2 | K51: 141.4 | L51: 142.5 | M51: 140.4 | O51: 45 | P51: Minimum S.E. Requirement
C52: =IF(E51=0,"",IF(E51<O50," Fails Minimum S.E. Requirements","")) ->  | I52: Shot # 3
B53: Lab Molded | C53: # of | D53: Specimen | E53: RATIO | F53: LSMG | G53: % Density | I53: Shot # 4
B54: Specimen | C54: Gyrations | D54: Height | E54: (Ht@Ndes | F54: (RATIO x | G54: (LSMG | I54: Avg. Unit Weight | K54: =IF(K51="","",AVERAGE(K50:K53)) -> 140.85 | L54: =IF(L51="","",AVERAGE(L50:L53)) -> 142 | M54: =IF(M51="","",AVERAGE(M50:M53)) -> 140.45
B55: @ Ndes | E55: /Ht@Nini) | F55: LSMG @ | G55: X 100/ | I55: Nuclear Core Spec. Grav. | K55: =IF(K54="","",ROUND((K54/62.4)*$J$44+$L$44,Tables!$E$53)) -> 2.26 | L55: =IF(L54="","",ROUND((L54/62.4)*$J$44+$L$44,Tables!$E$53)) -> 2.278 | M55: =IF(M54="","",ROUND((M54/62.4)*$J$44+$L$44,Tables!$E$53)) -> 2.254 | O55: =COUNT(K54:M54) -> 3 | P55: No. of Cores
F56: Ndes) | G56: Rice's) | I56: Calc. Avg. Bulk Core Sp. Gr. | L56: =IF(K55="","",ROUND(SUM(((K55+L55+M55))/O55),Tables!$E$55)) -> 2.264
B57: Nini | C57: =VLOOKUP(O8,GTable,2,FALSE) -> 8 | D57: 124.1 | E57: =IF(D57="","",ROUND((D58/D57),Tables!$E$35)) -> 0.921 | F57: =IF(D57="","",ROUND((E57*F58),Tables!$E$36)) -> 2.181 | G57: =IF(AND(F58<>"",OR(D57="",D58="")),"ERR",IF(D58="","",ROUND(((F57*100)/$L$24),Tables!$E$37))) -> 88.3 | I57: % Roadway Density | K57: =IF(K55="","",ROUND(K55/$L$45*100,Tables!$E$56)) -> 91.5 | L57: =IF(L55="","",ROUND(L55/$L$45*100,Tables!$E$56)) -> 92.2 | M57: =IF(M55="","",ROUND(M55/$L$45*100,Tables!$E$56)) -> 91.3
B58: Ndes | C58: =VLOOKUP(O8,GTable,3,FALSE) -> 100 | D58: 114.3 | E58: 1 | F58: =IF(D58="","",L38) -> 2.368 | G58: =IF(D58="","",ROUND(((F58*100)/$L$24),Tables!$E$38)) -> 95.9 | I58: % Avg. Roadway Density | L58: =IF(L44="","",IF(L44>0,ROUND(L56/L45*100,Tables!$E$57),"")) -> 91.7
C59: =(IF(G58="","",IF(OR($G$57="ERR",OR($G57>$O46,$G$57<$O$45))," Fails Nini Requirements",""))) ->  | J59: =IF(L58="","",IF(OR(L58>97,L58<88.1)," Fails Roadway Density Requirements","")) -> 
B61: Signature / Cert. ID | E61: /

Sheet Sublot 3
A1: ='Sublot 1'!A1 -> v 1.14 | B1: OKLAHOMA DEPARTMENT OF TRANSPORTATION
A2: SUPERPAVE
A3: ='Sublot 1'!A3:N3 -> McALESTER RESIDENCY
A4: HOT MIX ASPHALT SAMPLE SHEET
P5: INFORMATION FROM MIX DESIGN:
A6: Project No. | B6: =IF('Sublot 1'!B6="","",'Sublot 1'!B6) ->  | F6: J.P. No. | G6: =IF('Sublot 1'!G6="","",'Sublot 1'!G6) ->  | J6: Contract No. | L6: =IF('Sublot 1'!L6="","",'Sublot 1'!L6) -> 
A7: Contractor | B7: =IF('Sublot 1'!B7="","",'Sublot 1'!B7) ->  | F7: Producer | G7: =IF('Sublot 1'!G7="","",'Sublot 1'!G7) ->  | J7: Plant Location | L7: =IF('Sublot 1'!L7="","",'Sublot 1'!L7) -> 
A8: ='Sublot 1'!A8 -> SM Sample ID | F8: Mix Type | G8: =IF('Sublot 1'!G8="","",'Sublot 1'!G8) ->  | J8: Design No. | L8: =IF('Sublot 1'!L8="","",'Sublot 1'!L8) ->  | O8: ='Sublot 1'!O8 -> 3M+ | P8: Million ESALs or PG Grade: Select from drop-down list.
B10: EXTRACTIONS AND GRADATIONS | H10: IOC | I10: 1000 | J10: TOTAL TONS for this SubLOT
B11: (OHD L-26, AASHTO T-30, T-11) | H11: =IF('Sublot 1'!H11="","",'Sublot 1'!H11) -> 0.18 | I11: ='Sublot 1'!I11 -> 2.659 | J11: Gse from Design | L11: (Gse >= Gsb)
B12: Time | D12: Date | H12: Specimen Wt. | I12: ='Sublot 1'!I12 -> 2.612 | J12: Gsb from Design | O12: A | P12: Change for each sheet if A is not used on each. Rices Precision: Select from drop-down list.
B13: Temperature | D13: Lot | E13: =IF('Sublot 1'!E13="","",'Sublot 1'!E13) -> 1 | F13: SubLot | G13: 3 | H13: =IF('Sublot 1'!H13="","",'Sublot 1'!H13) -> 4700 | I13: ='Sublot 1'!I13 -> 1.01 | J13: Spec. Grav. AC from Design | O13: =VLOOKUP(O12,PTable,2,FALSE) -> 0.014 | P13: Method A - Mechanical or Method B - Manual
B14: SIEVE | C14: JMF | D14: Acc. Wt. | E14: Acc. % | F14: Total Agg. | I14: MAXIMUM SPECIFIC GRAVITY (AASHTO T209)
B15: SIZE | D15: Retd. | E15: Retd. | F15: % Passing | G15: Dev. | I15: Sub-Lot No. | P15: Limits | S15: Tolerance
B16: 1 1/2" (37.5 mm) | C16: ='Sublot 2'!C16 -> 100 | D16: 0 | E16: =IF(D16="","",ROUND(D16/$E$34*100,Tables!$E$27)) -> 0 | F16: =IF(D16="","",100-E16) -> 100 | G16: =IF(D16="","",IF(F16<$P16,ABS(F16-$P16),IF(F16>$Q16,ABS($Q16-F16),Tables!$E$27))) -> 0 | I16: Sample No. | K16: 1 | L16: | | M16: 2 | O16: 1 1/2" (37.5 mm) | P16: =IF(C16="","",C16-S16) -> 100 | Q16: =IF(C16="","",IF(C16+S16>100,100,C16+S16)) -> 100 | S16: 0
B17: 1" (25.0 mm) | C17: ='Sublot 2'!C17 -> 100 | D17: 0 | E17: =IF(D17="","",ROUND(D17/$E$34*100,Tables!$E$27)) -> 0 | F17: 100 | G17: =IF(D17="","",IF(F17<$P17,ABS(F17-$P17),IF(F17>$Q17,ABS($Q17-F17),Tables!$E$27))) -> 0 | I17: Flask No. | K17: 2 | L17: | | M17: 4 | O17: 1" (25.0 mm) | P17: 100 | Q17: 100 | S17: 0
B18: 3/4" (19.0 mm | C18: ='Sublot 2'!C18 -> 100 | D18: 0 | E18: =IF(D18="","",ROUND(D18/$E$34*100,Tables!$E$27)) -> 0 | F18: 100 | G18: =IF(D18="","",IF(F18<$P18,ABS(F18-$P18),IF(F18>$Q18,ABS($Q18-F18),Tables!$E$27))) -> 0 | I18: Sample Wt. | J18: (A) | K18: 1576.3 | L18: | | M18: 1548 | O18: 3/4" (19.0 mm | P18: 100 | Q18: 100 | S18: 0
B19: 1/2" (12.5 mm) | C19: ='Sublot 2'!C19 -> 96 | D19: 48 | E19: =IF(D19="","",ROUND(D19/$E$34*100,Tables!$E$27)) -> 3 | F19: 97 | G19: =IF(D19="","",IF(F19<$P19,ABS(F19-$P19),IF(F19>$Q19,ABS($Q19-F19),Tables!$E$27))) -> 0 | I19: Calib. Wt. | J19: (B) | K19: 6179 | L19: | | M19: 6250.7 | O19: 1/2" (12.5 mm) | P19: 89 | Q19: 100 | S19: 7
B20: 3/8" (9.5 mm) | C20: ='Sublot 2'!C20 -> 86 | D20: 188.9 | E20: =IF(D20="","",ROUND(D20/$E$34*100,Tables!$E$27)) -> 13 | F20: 87 | G20: =IF(D20="","",IF(F20<$P20,ABS(F20-$P20),IF(F20>$Q20,ABS($Q20-F20),Tables!$E$27))) -> 0 | I20: A + B | J20: (C) | K20: =IF(K18="","",+K18+K19) -> 7755.3 | L20: | | M20: =IF(M18="","",+M18+M19) -> 7798.7 | O20: 3/8" (9.5 mm) | P20: 79 | Q20: 93 | S20: 7
B21: # 4 ( 4.75 mm) | C21: ='Sublot 2'!C21 -> 61 | D21: 516.4 | E21: =IF(D21="","",ROUND(D21/$E$34*100,Tables!$E$27)) -> 35 | F21: 65 | G21: =IF(D21="","",IF(F21<$P21,ABS(F21-$P21),IF(F21>$Q21,ABS($Q21-F21),Tables!$E$27))) -> 0 | I21: Sample + Flask + H²O (D) | K21: 7115 | L21: | | M21: 7171 | O21: # 4 ( 4.75 mm) | P21: 54 | Q21: 68 | S21: 7
B22: # 8 (2.36 mm) | C22: ='Sublot 2'!C22 -> 44 | D22: 800.5 | E22: =IF(D22="","",ROUND(D22/$E$34*100,Tables!$E$27)) -> 55 | F22: 45 | G22: =IF(D22="","",IF(F22<$P22,ABS(F22-$P22),IF(F22>$Q22,ABS($Q22-F22),Tables!$E$27))) -> 0 | I22: C - D | J22: (E) | K22: =IF(K20="","",+K20-K21) -> 640.3 | L22: | | M22: =IF(M20="","",+M20-M21) -> 627.7 | O22: # 8 (2.36 mm) | P22: 39 | Q22: 49 | S22: 5
B23: # 16 ( 1.18 mm) | C23: ='Sublot 2'!C23 -> 32 | D23: 983.7 | E23: =IF(D23="","",ROUND(D23/$E$34*100,Tables!$E$27)) -> 67 | F23: 33 | G23: =IF(D23="","",IF(F23<$P23,ABS(F23-$P23),IF(F23>$Q23,ABS($Q23-F23),Tables!$E$27))) -> 0 | I23: Rice's Gravity | J23: (A/E) | K23: =IF(K18>0,ROUND(K18/K22,Tables!$E$40),"") -> 2.462 | L23: | | M23: =IF(M18>0,ROUND(M18/M22,Tables!$E$40),"") -> 2.466 | O23: # 16 ( 1.18 mm) | P23: 28 | Q23: 36 | S23: 4
B24: # 30 (.600 mm) | C24: ='Sublot 2'!C24 -> 23 | D24: 1116.8 | E24: =IF(D24="","",ROUND(D24/$E$34*100,Tables!$E$27)) -> 76 | F24: 24 | G24: =IF(D24="","",IF(F24<$P24,ABS(F24-$P24),IF(F24>$Q24,ABS($Q24-F24),Tables!$E$27))) -> 0 | I24: Avg. Rice Gravity (Gmm) | L24: =IF(K23="","",ROUND(AVERAGE(K23,M23),Tables!$E$41)) -> 2.464 | M24: =IF(K23="","",IF(ABS(K23-M23)>O13,"ERR","")) ->  | O24: # 30 (.600 mm) | P24: 19 | Q24: 27 | S24: 4
B25: # 50 (.300 mm) | C25: ='Sublot 2'!C25 -> 13 | D25: 1262.3 | E25: =IF(D25="","",ROUND(D25/$E$34*100,Tables!$E$27)) -> 86 | F25: 14 | G25: =IF(D25="","",IF(F25<$P25,ABS(F25-$P25),IF(F25>$Q25,ABS($Q25-F25),Tables!$E$27))) -> 0 | I25: Eff. Spec. Grav. (Gse) | L25: =IF(K18>0,ROUND((100-F30)/((100/L24)-(F30/$I$13)),Tables!$E$42),"") -> 2.657 | O25: # 50 (.300 mm) | P25: 9 | Q25: 17 | S25: 4
B26: # 100 (.150 mm) | C26: ='Sublot 2'!C26 -> 7 | D26: 1335.4 | E26: =IF(D26="","",ROUND(D26/$E$34*100,Tables!$E$27)) -> 91 | F26: 9 | G26: =IF(D26="","",IF(F26<$P26,ABS(F26-$P26),IF(F26>$Q26,ABS($Q26-F26),Tables!$E$27))) -> 0 | J26: =IF(K23="","",IF(ABS(K23-M23)>O13,"ERR = Precision Out of Tolerance","")) ->  | O26: # 100 (.150 mm) | P26: 4 | Q26: 10 | S26: 3
B27: # 200 (.075 mm) | C27: ='Sublot 2'!C27 -> 4.4 | D27: 1373.3 | I27: LAB MOLDED DENSITY (OHD L-8, L-14) @ Ndes
B28: Total -200 (W3) | F28: =IF(E34="","",ROUND((E38/E34)*100,Tables!$E$28)) -> 6.1 | G28: =IF(D27="","",IF(F28<$P28,ROUND($P28-F28,Tables!$E$28),IF(F28>$Q28,ROUND(F28-$Q28,Tables!$E$28),0))) -> 0 | I28: New Gsb ( calculated ) | L28: =IF(L25="","",ROUND(IF(I11="","",(I12/I11)*L25),Tables!$E$44)) -> 2.61 | O28: Total -200 (W3) | P28: =IF(C27="","",C27-S28) -> 2.4 | Q28: =IF(C27="","",C27+S28) -> 6.4 | S28: 2
B29: % AC (P5m) | C29: ='Sublot 2'!C29 -> 4.9 | D29: 4.8 | I29: Spec. Grav. AC | L29: =IF(K33="","",$I13) -> 1.01
B30: Corrected %AC | C30: . | F30: =IF(D29="","",ROUND(((((D29*F43)/100)-(F43-F44))/F44)*100,Tables!$E$29)) -> 4.8 | G30: =IF(D29="","",IF(ABS(C29-F30)>S30,ROUND(ABS(C29-F30),Tables!$E$33),0)) -> 0 | I30: % AC | L30: =IF(K33="","",+F30) -> 4.8 | O30: Corrected %AC | P30: =IF(C29="","",C29-S30) -> 4.5 | Q30: =IF(C29="","",C29+S30) -> 5.3 | S30: 0.4
B31: Basket (A) | E31: 3362.5 | I31: Max. Theo. Spec. Grav. | L31: =IF(D29="","",IF($L$24="",ROUND((100/(($F$30/$I$13)+(100-$F$30)/#REF!)),Tables!$E$45),L24)) -> 2.464
B32: Basket + Mix (B) | E32: 4902.5 | I32: Specimen No. | K32: 1 | L32: 2
B33: Mix (B-A) | E33: =IF(E31="","",+E32-E31) -> 1540 | I33: A (Wt. Spec. in Air) | K33: 4695.7 | L33: 4696.3
B34: Extr. Aggr. Wt (C) | D34: =IF(D31="","",+D31+D32) ->  | E34: 1461.7 | I34: C (Wt. Spec. in Water | K34: 2721.7 | L34: 2723.6
B35: Washed Wt (D) | E35: 1375.6 | I35: B (Wt. Spec. S.S.D.) | K35: 4697.8 | L35: 4698.3
B36: Pan Matl (E) | E36: 2.6 | I36: B - C | K36: =IF(K33="","",+K35-K34) -> 1976.1 | L36: =IF(L33="","",+L35-L34) -> 1974.7 | M36: =IF(M33="","",+M35-M34) -> 
B37: Wt of Loss by Washing (W1) | E37: =IF(E35="","",E34-E35) -> 86.1 | I37: L.M. Spec. Grav. - Gmb | K37: =IF(K33=0,"",ROUND((K33/K36),Tables!$E$46)) -> 2.376 | L37: =IF(L33=0,"",ROUND((L33/L36),Tables!$E$46)) -> 2.378 | M37: =IF(M33=0,"",ROUND((M33/M36),Tables!$E$46)) -> 
B38: Total Agg. Passing 200 (W2) | E38: =IF(E36="","",+E37+E36) -> 88.7 | I38: Avg. L.M. Spec. Grav. | L38: =IF(K37="","",ROUND(AVERAGE(K37,L37,M37),Tables!$E$47)) -> 2.377
B39: Precision (+/- 0.2 %) | E39: =IF(E35="","",ROUND(((E35-(D27+E36))/E35)*100,Tables!$E$30)) -> 0 | I39: % L.M. Density @ Ndes | L39: =IF(L38="","",ROUND(L38/L31*100,Tables!$E$48)) -> 96.5 | M39: =IF(L39="","",IF(OR(ROUND(L39,1)<O39,ROUND(L39,1)>Q39),"ERR","")) ->  | O39: ='Sublot 1'!O39 -> 94.5 | P39: - | Q39: ='Sublot 1'!Q39 -> 97.4 | R39: Enter %Density of GMM reqd. as listed on JMF
I40: % Air Voids | L40: =IF(L39="","",ROUND(100-(L38/L31*100),Tables!$E$49)) -> 3.5 | M40: =IF(L40="","",ABS(O40-L40)) -> 0.5 | O40: ='Sublot 1'!O40 -> 4 | Q40: %Air Voids Target | T40: (Superpave, SMA) = 4%, (RBL) = 2%
B41: MOISTURE & VOLATILE SAMPLE | I41: % V.M.A. | L41: =IF(L38="","",IF(L38>0,ROUND(100-L38*(100-L30)/L28,Tables!$E$50),Tables!E50)) -> 13.3 | M41: =IF(L41="","",IF(L41<O41,"ERR","")) -> ERR | O41: ='Sublot 2'!O41 -> 14 | Q41: Enter required field VMA from mix design.
B42: Pan | E42: 0 | I42: =IF(M39="ERR","%L.M. Density out of range","") ->  | L42: =IF(M41="ERR"," %VMA out of range","") -> %VMA out of range
B43: Original Mix (W1m) | E43: 4902.5 | F43: =IF(E43="","",E43-E42) -> 4902.5 | I43: ROADWAY DENSITY (OHD L-14 / OHD L-45)
B44: Dry Mix (W5m) | E44: 4902.5 | F44: =IF(E44="","",E44-E42) -> 4902.5 | I44: m = | J44: 0.9892 | K44: b = | L44: 0.0273
I45: =IF(O45=""," Avg. Rice"," Max. Theo. at JMF AC") -> Max. Theo. at JMF AC | L45: =IF(L24="","",ROUND(L24,Tables!$E$52)) -> 2.464 | M45: Gmm | O45: =VLOOKUP(O8,GTable,5) -> 85.5 | P45: Nini Minimun Requirement
B46: SAND EQUIVALENT (AASHTO T-176) | I46: Specimen No. | K46: 1 | L46: 2 | M46: 3 | O46: =VLOOKUP(O8,GTable,7) -> 89 | P46: Nini Maximum Requirement
B47: S.E. No. | D47: 1 | E47: 2 | F47: =+IF(F48="","",3) ->  | I47: Station
B48: Sand Reading | I48: Expressway
B49: Clay Reading | H49: =IF(O49=1,"OHD L-14","") ->  | I49: Lane
B50: Sand Equivalent | D50: =IF(D49="","",ROUNDUP(MROUND(D48/D49*100,0.1),0)) ->  | E50: =IF(E49="","",ROUNDUP(MROUND(E48/E49*100,0.1),0)) ->  | F50: =IF(F49="","",ROUNDUP(MROUND(F48/F49*100,0.1),0)) ->  | I50: Shot # 1 | K50: 142.4 | L50: 144.7 | M50: 142.2
B51: Average Sand Equivalent | E51: =IF(D50="","",ROUNDUP(MROUND(SUM(D50:F50)/COUNT(D50:F50),0.1),0)) ->  | I51: Shot # 2 | K51: 144.3 | L51: 144.7 | M51: 141.1 | O51: 45 | P51: Minimum S.E. Requirement
C52: =IF(E51=0,"",IF(E51<O50," Fails Minimum S.E. Requirements","")) ->  | I52: Shot # 3
B53: Lab Molded | C53: # of | D53: Specimen | E53: RATIO | F53: LSMG | G53: % Density | I53: Shot # 4
B54: Specimen | C54: Gyrations | D54: Height | E54: (Ht@Ndes | F54: (RATIO x | G54: (LSMG | I54: Avg. Unit Weight | K54: =IF(K51="","",AVERAGE(K50:K53)) -> 143.35 | L54: =IF(L51="","",AVERAGE(L50:L53)) -> 144.7 | M54: =IF(M51="","",AVERAGE(M50:M53)) -> 141.65
B55: @ Ndes | E55: /Ht@Nini) | F55: LSMG @ | G55: X 100/ | I55: Nuclear Core Spec. Grav. | K55: =IF(K54="","",ROUND((K54/62.4)*$J$44+$L$44,Tables!$E$53)) -> 2.3 | L55: =IF(L54="","",ROUND((L54/62.4)*$J$44+$L$44,Tables!$E$53)) -> 2.321 | M55: =IF(M54="","",ROUND((M54/62.4)*$J$44+$L$44,Tables!$E$53)) -> 2.273 | O55: =COUNT(K54:M54) -> 3 | P55: No. of Cores
F56: Ndes) | G56: Rice's) | I56: Calc. Avg. Bulk Core Sp. Gr. | L56: =IF(K55="","",ROUND(SUM(((K55+L55+M55))/O55),Tables!$E$55)) -> 2.298
B57: Nini | C57: =VLOOKUP(O8,GTable,2,FALSE) -> 8 | D57: 123.1 | E57: =IF(D57="","",ROUND((D58/D57),Tables!$E$35)) -> 0.922 | F57: =IF(D57="","",ROUND((E57*F58),Tables!$E$36)) -> 2.192 | G57: =IF(AND(F58<>"",OR(D57="",D58="")),"ERR",IF(D58="","",ROUND(((F57*100)/$L$24),Tables!$E$37))) -> 89 | I57: % Roadway Density | K57: =IF(K55="","",ROUND(K55/$L$45*100,Tables!$E$56)) -> 93.3 | L57: =IF(L55="","",ROUND(L55/$L$45*100,Tables!$E$56)) -> 94.2 | M57: =IF(M55="","",ROUND(M55/$L$45*100,Tables!$E$56)) -> 92.2
B58: Ndes | C58: =VLOOKUP(O8,GTable,3,FALSE) -> 100 | D58: 113.5 | E58: 1 | F58: =IF(D58="","",L38) -> 2.377 | G58: =IF(D58="","",ROUND(((F58*100)/$L$24),Tables!$E$38)) -> 96.5 | I58: % Avg. Roadway Density | L58: =IF(L44="","",IF(L44>0,ROUND(L56/L45*100,Tables!$E$57),"")) -> 93.3
C59: =(IF(G58="","",IF(OR($G$57="ERR",OR($G57>$O46,$G$57<$O$45))," Fails Nini Requirements",""))) ->  | J59: =IF(L58="","",IF(OR(L58>97,L58<88.1)," Fails Roadway Density Requirements","")) -> 
B61: Signature / Cert. ID | E61: /

Sheet Sublot 4
A1: ='Sublot 1'!A1 -> v 1.14 | B1: OKLAHOMA DEPARTMENT OF TRANSPORTATION
A2: SUPERPAVE
A3: McALESTER RESIDENCY
A4: HOT MIX ASPHALT SAMPLE SHEET
P5: INFORMATION FROM MIX DESIGN:
A6: Project No. | B6: =IF('Sublot 1'!B6="","",'Sublot 1'!B6) ->  | F6: J.P. No. | G6: =IF('Sublot 1'!G6="","",'Sublot 1'!G6) ->  | J6: Contract No. | L6: =IF('Sublot 1'!L6="","",'Sublot 1'!L6) -> 
A7: Contractor | B7: =IF('Sublot 1'!B7="","",'Sublot 1'!B7) ->  | F7: Producer | G7: =IF('Sublot 1'!G7="","",'Sublot 1'!G7) ->  | J7: Plant Location | L7: =IF('Sublot 1'!L7="","",'Sublot 1'!L7) -> 
A8: ='Sublot 1'!A8 -> SM Sample ID | F8: Mix Type | G8: =IF('Sublot 1'!G8="","",'Sublot 1'!G8) ->  | J8: Design No. | L8: =IF('Sublot 1'!L8="","",'Sublot 1'!L8) ->  | O8: ='Sublot 1'!O8 -> 3M+ | P8: Million ESALs or PG Grade: Select from drop-down list.
B10: EXTRACTIONS AND GRADATIONS | H10: IOC | I10: 1000 | J10: TOTAL TONS for this SubLOT
B11: (OHD L-26, AASHTO T-30, T-11) | H11: =IF('Sublot 1'!H11="","",'Sublot 1'!H11) -> 0.18 | I11: ='Sublot 1'!I11 -> 2.659 | J11: Gse from Design | L11: (Gse >= Gsb)
B12: Time | D12: Date | H12: Specimen Wt. | I12: ='Sublot 1'!I12 -> 2.612 | J12: Gsb from Design | O12: A | P12: Change for each sheet if A is not used on each. Rices Precision: Select from drop-down list.
B13: Temperature | D13: Lot | E13: =IF('Sublot 1'!E13="","",'Sublot 1'!E13) -> 1 | F13: SubLot | G13: 4 | H13: =IF('Sublot 1'!H13="","",'Sublot 1'!H13) -> 4700 | I13: ='Sublot 1'!I13 -> 1.01 | J13: Spec. Grav. AC from Design | O13: =VLOOKUP(O12,PTable,2,FALSE) -> 0.014 | P13: Method A - Mechanical or Method B - Manual
B14: SIEVE | C14: JMF | D14: Acc. Wt. | E14: Acc. % | F14: Total Agg. | I14: MAXIMUM SPECIFIC GRAVITY (AASHTO T209)
B15: SIZE | D15: Retd. | E15: Retd. | F15: % Passing | G15: Dev. | I15: Sub-Lot No. | P15: Limits | S15: Tolerance
B16: 1 1/2" (37.5 mm) | C16: ='Sublot 3'!C16 -> 100 | D16: 0 | E16: =IF(D16="","",ROUND(D16/$E$34*100,Tables!$E$27)) -> 0 | F16: =IF(D16="","",100-E16) -> 100 | G16: =IF(D16="","",IF(F16<$P16,ABS(F16-$P16),IF(F16>$Q16,ABS($Q16-F16),Tables!$E$27))) -> 0 | I16: Sample No. | K16: 1 | L16: | | M16: 2 | O16: 1 1/2" (37.5 mm) | P16: =IF(C16="","",C16-S16) -> 100 | Q16: =IF(C16="","",IF(C16+S16>100,100,C16+S16)) -> 100 | S16: 0
B17: 1" (25.0 mm) | C17: ='Sublot 3'!C17 -> 100 | D17: 0 | E17: =IF(D17="","",ROUND(D17/$E$34*100,Tables!$E$27)) -> 0 | F17: 100 | G17: =IF(D17="","",IF(F17<$P17,ABS(F17-$P17),IF(F17>$Q17,ABS($Q17-F17),Tables!$E$27))) -> 0 | I17: Flask No. | K17: 2 | L17: | | M17: 4 | O17: 1" (25.0 mm) | P17: 100 | Q17: 100 | S17: 0
B18: 3/4" (19.0 mm | C18: ='Sublot 3'!C18 -> 100 | D18: 0 | E18: =IF(D18="","",ROUND(D18/$E$34*100,Tables!$E$27)) -> 0 | F18: 100 | G18: =IF(D18="","",IF(F18<$P18,ABS(F18-$P18),IF(F18>$Q18,ABS($Q18-F18),Tables!$E$27))) -> 0 | I18: Sample Wt. | J18: (A) | K18: 1544.5 | L18: | | M18: 1578.9 | O18: 3/4" (19.0 mm | P18: 100 | Q18: 100 | S18: 0
B19: 1/2" (12.5 mm) | C19: ='Sublot 3'!C19 -> 96 | D19: 50.4 | E19: =IF(D19="","",ROUND(D19/$E$34*100,Tables!$E$27)) -> 3 | F19: 97 | G19: =IF(D19="","",IF(F19<$P19,ABS(F19-$P19),IF(F19>$Q19,ABS($Q19-F19),Tables!$E$27))) -> 0 | I19: Calib. Wt. | J19: (B) | K19: 6179 | L19: | | M19: 6250.7 | O19: 1/2" (12.5 mm) | P19: 89 | Q19: 100 | S19: 7
B20: 3/8" (9.5 mm) | C20: ='Sublot 3'!C20 -> 86 | D20: 247.3 | E20: =IF(D20="","",ROUND(D20/$E$34*100,Tables!$E$27)) -> 17 | F20: 83 | G20: =IF(D20="","",IF(F20<$P20,ABS(F20-$P20),IF(F20>$Q20,ABS($Q20-F20),Tables!$E$27))) -> 0 | I20: A + B | J20: (C) | K20: =IF(K18="","",+K18+K19) -> 7723.5 | L20: | | M20: =IF(M18="","",+M18+M19) -> 7829.6 | O20: 3/8" (9.5 mm) | P20: 79 | Q20: 93 | S20: 7
B21: # 4 ( 4.75 mm) | C21: ='Sublot 3'!C21 -> 61 | D21: 533.9 | E21: =IF(D21="","",ROUND(D21/$E$34*100,Tables!$E$27)) -> 36 | F21: 64 | G21: =IF(D21="","",IF(F21<$P21,ABS(F21-$P21),IF(F21>$Q21,ABS($Q21-F21),Tables!$E$27))) -> 0 | I21: Sample + Flask + H²O (D) | K21: 7095.2 | L21: | | M21: 7189.3 | O21: # 4 ( 4.75 mm) | P21: 54 | Q21: 68 | S21: 7
B22: # 8 (2.36 mm) | C22: ='Sublot 3'!C22 -> 44 | D22: 803.7 | E22: =IF(D22="","",ROUND(D22/$E$34*100,Tables!$E$27)) -> 55 | F22: 45 | G22: =IF(D22="","",IF(F22<$P22,ABS(F22-$P22),IF(F22>$Q22,ABS($Q22-F22),Tables!$E$27))) -> 0 | I22: C - D | J22: (E) | K22: =IF(K20="","",+K20-K21) -> 628.3 | L22: | | M22: =IF(M20="","",+M20-M21) -> 640.3 | O22: # 8 (2.36 mm) | P22: 39 | Q22: 49 | S22: 5
B23: # 16 ( 1.18 mm) | C23: ='Sublot 3'!C23 -> 32 | D23: 993.7 | E23: =IF(D23="","",ROUND(D23/$E$34*100,Tables!$E$27)) -> 67 | F23: 33 | G23: =IF(D23="","",IF(F23<$P23,ABS(F23-$P23),IF(F23>$Q23,ABS($Q23-F23),Tables!$E$27))) -> 0 | I23: Rice's Gravity | J23: (A/E) | K23: =IF(K18>0,ROUND(K18/K22,Tables!$E$40),"") -> 2.458 | L23: | | M23: =IF(M18>0,ROUND(M18/M22,Tables!$E$40),"") -> 2.466 | O23: # 16 ( 1.18 mm) | P23: 28 | Q23: 36 | S23: 4
B24: # 30 (.600 mm) | C24: ='Sublot 3'!C24 -> 23 | D24: 1131.4 | E24: =IF(D24="","",ROUND(D24/$E$34*100,Tables!$E$27)) -> 77 | F24: 23 | G24: =IF(D24="","",IF(F24<$P24,ABS(F24-$P24),IF(F24>$Q24,ABS($Q24-F24),Tables!$E$27))) -> 0 | I24: Avg. Rice Gravity (Gmm) | L24: =IF(K23="","",ROUND(AVERAGE(K23,M23),Tables!$E$41)) -> 2.462 | M24: =IF(K23="","",IF(ABS(K23-M23)>O13,"ERR","")) ->  | O24: # 30 (.600 mm) | P24: 19 | Q24: 27 | S24: 4
B25: # 50 (.300 mm) | C25: ='Sublot 3'!C25 -> 13 | D25: 1281.3 | E25: =IF(D25="","",ROUND(D25/$E$34*100,Tables!$E$27)) -> 87 | F25: 13 | G25: =IF(D25="","",IF(F25<$P25,ABS(F25-$P25),IF(F25>$Q25,ABS($Q25-F25),Tables!$E$27))) -> 0 | I25: Eff. Spec. Grav. (Gse) | L25: =IF(K18>0,ROUND((100-F30)/((100/L24)-(F30/$I$13)),Tables!$E$42),"") -> 2.654 | O25: # 50 (.300 mm) | P25: 9 | Q25: 17 | S25: 4
B26: # 100 (.150 mm) | C26: ='Sublot 3'!C26 -> 7 | D26: 1335 | E26: =IF(D26="","",ROUND(D26/$E$34*100,Tables!$E$27)) -> 91 | F26: 9 | G26: =IF(D26="","",IF(F26<$P26,ABS(F26-$P26),IF(F26>$Q26,ABS($Q26-F26),Tables!$E$27))) -> 0 | J26: =IF(K23="","",IF(ABS(K23-M23)>O13,"ERR = Precision Out of Tolerance","")) ->  | O26: # 100 (.150 mm) | P26: 4 | Q26: 10 | S26: 3
B27: # 200 (.075 mm) | C27: ='Sublot 3'!C27 -> 4.4 | D27: 1391.7 | I27: LAB MOLDED DENSITY (OHD L-8, L-14) @ Ndes
B28: Total -200 (W3) | F28: =IF(E34="","",ROUND((E38/E34)*100,Tables!$E$28)) -> 5.4 | G28: =IF(D27="","",IF(F28<$P28,ROUND($P28-F28,Tables!$E$28),IF(F28>$Q28,ROUND(F28-$Q28,Tables!$E$28),0))) -> 0 | I28: New Gsb ( calculated ) | L28: =IF(L25="","",ROUND(IF(I11="","",(I12/I11)*L25),Tables!$E$44)) -> 2.607 | O28: Total -200 (W3) | P28: =IF(C27="","",C27-S28) -> 2.4 | Q28: =IF(C27="","",C27+S28) -> 6.4 | S28: 2
B29: % AC (P5m) | C29: ='Sublot 3'!C29 -> 4.9 | D29: 4.81 | I29: Spec. Grav. AC | L29: =IF(K33="","",$I13) -> 1.01
B30: Corrected %AC | C30: . | F30: =IF(D29="","",ROUND(((((D29*F43)/100)-(F43-F44))/F44)*100,Tables!$E$29)) -> 4.8 | G30: =IF(D29="","",IF(ABS(C29-F30)>S30,ROUND(ABS(C29-F30),Tables!$E$33),0)) -> 0 | I30: % AC | L30: =IF(K33="","",+F30) -> 4.8 | O30: Corrected %AC | P30: =IF(C29="","",C29-S30) -> 4.5 | Q30: =IF(C29="","",C29+S30) -> 5.3 | S30: 0.4
B31: Basket (A) | E31: 3362.5 | I31: Max. Theo. Spec. Grav. | L31: =IF(D29="","",IF($L$24="",ROUND((100/(($F$30/$I$13)+(100-$F$30)/#REF!)),Tables!$E$45),L24)) -> 2.462
B32: Basket + Mix (B) | E32: 4914.7 | I32: Specimen No. | K32: 1 | L32: 2
B33: Mix (B-A) | E33: =IF(E31="","",+E32-E31) -> 1552.2 | I33: A (Wt. Spec. in Air) | K33: 4701.6 | L33: 4704.3
B34: Extr. Aggr. Wt (C) | D34: =IF(D31="","",+D31+D32) ->  | E34: 1472.2 | I34: C (Wt. Spec. in Water | K34: 2717.7 | L34: 2719.8
B35: Washed Wt (D) | E35: 1396.2 | I35: B (Wt. Spec. S.S.D.) | K35: 4707.4 | L35: 4710.2
B36: Pan Matl (E) | E36: 4.2 | I36: B - C | K36: =IF(K33="","",+K35-K34) -> 1989.7 | L36: =IF(L33="","",+L35-L34) -> 1990.4 | M36: =IF(M33="","",+M35-M34) -> 
B37: Wt of Loss by Washing (W1) | E37: =IF(E35="","",E34-E35) -> 76 | I37: L.M. Spec. Grav. - Gmb | K37: =IF(K33=0,"",ROUND((K33/K36),Tables!$E$46)) -> 2.363 | L37: =IF(L33=0,"",ROUND((L33/L36),Tables!$E$46)) -> 2.363 | M37: =IF(M33=0,"",ROUND((M33/M36),Tables!$E$46)) -> 
B38: Total Agg. Passing 200 (W2) | E38: =IF(E36="","",+E37+E36) -> 80.2 | I38: Avg. L.M. Spec. Grav. | L38: =IF(K37="","",ROUND(AVERAGE(K37,L37,M37),Tables!$E$47)) -> 2.363
B39: Precision (+/- 0.2 %) | E39: =IF(E35="","",ROUND(((E35-(D27+E36))/E35)*100,Tables!$E$30)) -> 0 | I39: % L.M. Density @ Ndes | L39: =IF(L38="","",ROUND(L38/L31*100,Tables!$E$48)) -> 96 | M39: =IF(L39="","",IF(OR(ROUND(L39,1)<O39,ROUND(L39,1)>Q39),"ERR","")) ->  | O39: ='Sublot 1'!O39 -> 94.5 | P39: - | Q39: ='Sublot 1'!Q39 -> 97.4 | R39: Enter %Density of GMM reqd. as listed on JMF
I40: % Air Voids | L40: =IF(L39="","",ROUND(100-(L38/L31*100),Tables!$E$49)) -> 4 | M40: =IF(L40="","",ABS(O40-L40)) -> 0 | O40: ='Sublot 1'!O40 -> 4 | Q40: %Air Voids Target | T40: (Superpave, SMA) = 4%, (RBL) = 2%
B41: MOISTURE & VOLATILE SAMPLE | I41: % V.M.A. | L41: =IF(L38="","",IF(L38>0,ROUND(100-L38*(100-L30)/L28,Tables!$E$50),Tables!E50)) -> 13.7 | M41: =IF(L41="","",IF(L41<O41,"ERR","")) -> ERR | O41: ='Sublot 3'!O41 -> 14 | Q41: Enter required field VMA from mix design.
B42: Pan | E42: 0 | I42: =IF(M39="ERR","%L.M. Density out of range","") ->  | L42: =IF(M41="ERR"," %VMA out of range","") -> %VMA out of range
B43: Original Mix (W1m) | E43: 4914.7 | F43: =IF(E43="","",E43-E42) -> 4914.7 | I43: ROADWAY DENSITY (OHD L-14 / OHD L-45)
B44: Dry Mix (W5m) | E44: 4914.7 | F44: =IF(E44="","",E44-E42) -> 4914.7 | I44: m = | J44: 0.9892 | K44: b = | L44: 0.0273
I45: =IF(O45=""," Avg. Rice"," Max. Theo. at JMF AC") -> Max. Theo. at JMF AC | L45: =IF(L24="","",ROUND(L24,Tables!$E$52)) -> 2.462 | M45: Gmm | O45: =VLOOKUP(O8,GTable,5) -> 85.5 | P45: Nini Minimun Requirement
B46: SAND EQUIVALENT (AASHTO T-176) | I46: Specimen No. | K46: 1 | L46: 2 | M46: 3 | O46: =VLOOKUP(O8,GTable,7) -> 89 | P46: Nini Maximum Requirement
B47: S.E. No. | D47: 1 | E47: 2 | F47: 3 | I47: Station
B48: Sand Reading | I48: Expressway
B49: Clay Reading | H49: =IF(O49=1,"OHD L-14","") ->  | I49: Lane
B50: Sand Equivalent | D50: =IF(D49="","",ROUNDUP(D48/D49*100,1)) ->  | E50: =IF(E49="","",ROUNDUP(E48/E49*100,Tables!$E$31)) ->  | F50: =IF(F49="","",ROUNDUP(F48/F49*100,Tables!$E$31)) ->  | I50: Shot # 1 | K50: 144.5 | L50: 141.1 | M50: 139
B51: Average Sand Equivalent | E51: =IF(D50="","",AVERAGE(D50:F50)) ->  | I51: Shot # 2 | K51: 143.4 | L51: 142 | M51: 141.9 | O51: 45 | P51: Minimum S.E. Requirement
C52: =IF(E51=0,"",IF(E51<O50," Fails Minimum S.E. Requirements","")) ->  | I52: Shot # 3
B53: Lab Molded | C53: # of | D53: Specimen | E53: RATIO | F53: LSMG | G53: % Density | I53: Shot # 4
B54: Specimen | C54: Gyrations | D54: Height | E54: (Ht@Ndes | F54: (RATIO x | G54: (LSMG | I54: Avg. Unit Weight | K54: =IF(K51="","",AVERAGE(K50:K53)) -> 143.95 | L54: =IF(L51="","",AVERAGE(L50:L53)) -> 141.55 | M54: =IF(M51="","",AVERAGE(M50:M53)) -> 140.45
B55: @ Ndes | E55: /Ht@Nini) | F55: LSMG @ | G55: X 100/ | I55: Nuclear Core Spec. Grav. | K55: =IF(K54="","",ROUND((K54/62.4)*$J$44+$L$44,Tables!$E$53)) -> 2.309 | L55: =IF(L54="","",ROUND((L54/62.4)*$J$44+$L$44,Tables!$E$53)) -> 2.271 | M55: =IF(M54="","",ROUND((M54/62.4)*$J$44+$L$44,Tables!$E$53)) -> 2.254 | O55: =COUNT(K54:M54) -> 3 | P55: No. of Cores
F56: Ndes) | G56: Rice's) | I56: Calc. Avg. Bulk Core Sp. Gr. | L56: =IF(K55="","",ROUND(SUM(((K55+L55+M55))/O55),Tables!$E$55)) -> 2.278
B57: Nini | C57: =VLOOKUP(O8,GTable,2,FALSE) -> 8 | D57: 123.6 | E57: =IF(D57="","",ROUND((D58/D57),Tables!$E$35)) -> 0.9231 | F57: =IF(D57="","",ROUND((E57*F58),Tables!$E$36)) -> 2.181 | G57: =IF(AND(F58<>"",OR(D57="",D58="")),"ERR",IF(D58="","",ROUND(((F57*100)/$L$24),Tables!$E$37))) -> 88.6 | I57: % Roadway Density | K57: =IF(K55="","",ROUND(K55/$L$45*100,Tables!$E$56)) -> 93.8 | L57: =IF(L55="","",ROUND(L55/$L$45*100,Tables!$E$56)) -> 92.2 | M57: =IF(M55="","",ROUND(M55/$L$45*100,Tables!$E$56)) -> 91.6
B58: Ndes | C58: =VLOOKUP(O8,GTable,3,FALSE) -> 100 | D58: 114.1 | E58: 1 | F58: =IF(D58="","",L38) -> 2.363 | G58: =IF(D58="","",ROUND(((F58*100)/$L$24),Tables!$E$38)) -> 96 | I58: % Avg. Roadway Density | L58: =IF(L44="","",IF(L44>0,ROUND(L56/L45*100,Tables!$E$57),"")) -> 92.5
C59: =(IF(G58="","",IF(OR($G$57="ERR",OR($G57>$O46,$G$57<$O$45))," Fails Nini Requirements",""))) ->  | J59: =IF(L58="","",IF(OR(L58>97,L58<88.1)," Fails Roadway Density Requirements","")) -> 
B61: Signature / Cert. ID | E61: /

Sheet Sublot 5
A1: ='Sublot 1'!A1 -> v 1.14 | B1: OKLAHOMA DEPARTMENT OF TRANSPORTATION
A2: SUPERPAVE
A3: McALESTER RESIDENCY
A4: HOT MIX ASPHALT SAMPLE SHEET
P5: INFORMATION FROM MIX DESIGN:
A6: Project No. | B6: =IF('Sublot 1'!B6="","",'Sublot 1'!B6) ->  | F6: J.P. No. | G6: =IF('Sublot 1'!G6="","",'Sublot 1'!G6) ->  | J6: Contract No. | L6: =IF('Sublot 1'!L6="","",'Sublot 1'!L6) -> 
A7: Contractor | B7: =IF('Sublot 1'!B7="","",'Sublot 1'!B7) ->  | F7: Producer | G7: =IF('Sublot 1'!G7="","",'Sublot 1'!G7) ->  | J7: Plant Location | L7: =IF('Sublot 1'!L7="","",'Sublot 1'!L7) -> 
A8: ='Sublot 1'!A8 -> SM Sample ID | F8: Mix Type | G8: =IF('Sublot 1'!G8="","",'Sublot 1'!G8) ->  | J8: Design No. | L8: =IF('Sublot 1'!L8="","",'Sublot 1'!L8) ->  | O8: ='Sublot 1'!O8 -> 3M+ | P8: Million ESALs or PG Grade: Select from drop-down list.
B10: EXTRACTIONS AND GRADATIONS | H10: IOC | J10: TOTAL TONS for this SubLOT
B11: (OHD L-26, AASHTO T-30, T-11) | H11: =IF('Sublot 1'!H11="","",'Sublot 1'!H11) -> 0.18 | I11: ='Sublot 1'!I11 -> 2.659 | J11: Gse from Design | L11: (Gse >= Gsb)
B12: Time | D12: Date | H12: Specimen Wt. | I12: ='Sublot 1'!I12 -> 2.612 | J12: Gsb from Design | O12: A | P12: Change for each sheet if A is not used on each. Rices Precision: Select from drop-down list.
B13: Temperature | D13: Lot | E13: =IF('Sublot 1'!E13="","",'Sublot 1'!E13) -> 1 | F13: SubLot | G13: 5 | H13: =IF('Sublot 1'!H13="","",'Sublot 1'!H13) -> 4700 | I13: ='Sublot 1'!I13 -> 1.01 | J13: Spec. Grav. AC from Design | O13: =VLOOKUP(O12,PTable,2,FALSE) -> 0.014 | P13: Method A - Mechanical or Method B - Manual
B14: SIEVE | C14: JMF | D14: Acc. Wt. | E14: Acc. % | F14: Total Agg. | I14: MAXIMUM SPECIFIC GRAVITY (AASHTO T209)
B15: SIZE | D15: Retd. | E15: Retd. | F15: % Passing | G15: Dev. | I15: Sub-Lot No. | P15: Limits | S15: Tolerance
B16: 1 1/2" (37.5 mm) | C16: ='Sublot 4'!C16 -> 100 | E16: =IF(D16="","",ROUND(D16/$E$34*100,Tables!$E$27)) ->  | F16: =IF(D16="","",100-E16) ->  | G16: =IF(D16="","",IF(F16<$P16,ABS(F16-$P16),IF(F16>$Q16,ABS($Q16-F16),Tables!$E$27))) ->  | I16: Sample No. | K16: 1 | L16: | | M16: 2 | O16: 1 1/2" (37.5 mm) | P16: =IF(C16="","",C16-S16) -> 100 | Q16: =IF(C16="","",IF(C16+S16>100,100,C16+S16)) -> 100 | S16: 0
B17: 1" (25.0 mm) | C17: ='Sublot 4'!C17 -> 100 | E17: =IF(D17="","",ROUND(D17/$E$34*100,Tables!$E$27)) ->  | G17: =IF(D17="","",IF(F17<$P17,ABS(F17-$P17),IF(F17>$Q17,ABS($Q17-F17),Tables!$E$27))) ->  | I17: Flask No. | L17: | | O17: 1" (25.0 mm) | P17: 100 | Q17: 100 | S17: 0
B18: 3/4" (19.0 mm | C18: ='Sublot 4'!C18 -> 100 | E18: =IF(D18="","",ROUND(D18/$E$34*100,Tables!$E$27)) ->  | G18: =IF(D18="","",IF(F18<$P18,ABS(F18-$P18),IF(F18>$Q18,ABS($Q18-F18),Tables!$E$27))) ->  | I18: Sample Wt. | J18: (A) | L18: | | O18: 3/4" (19.0 mm | P18: 100 | Q18: 100 | S18: 0
B19: 1/2" (12.5 mm) | C19: ='Sublot 4'!C19 -> 96 | E19: =IF(D19="","",ROUND(D19/$E$34*100,Tables!$E$27)) ->  | G19: =IF(D19="","",IF(F19<$P19,ABS(F19-$P19),IF(F19>$Q19,ABS($Q19-F19),Tables!$E$27))) ->  | I19: Calib. Wt. | J19: (B) | L19: | | O19: 1/2" (12.5 mm) | P19: 89 | Q19: 100 | S19: 7
B20: 3/8" (9.5 mm) | C20: ='Sublot 4'!C20 -> 86 | E20: =IF(D20="","",ROUND(D20/$E$34*100,Tables!$E$27)) ->  | G20: =IF(D20="","",IF(F20<$P20,ABS(F20-$P20),IF(F20>$Q20,ABS($Q20-F20),Tables!$E$27))) ->  | I20: A + B | J20: (C) | K20: =IF(K18="","",+K18+K19) ->  | L20: | | M20: =IF(M18="","",+M18+M19) ->  | O20: 3/8" (9.5 mm) | P20: 79 | Q20: 93 | S20: 7
B21: # 4 ( 4.75 mm) | C21: ='Sublot 4'!C21 -> 61 | E21: =IF(D21="","",ROUND(D21/$E$34*100,Tables!$E$27)) ->  | G21: =IF(D21="","",IF(F21<$P21,ABS(F21-$P21),IF(F21>$Q21,ABS($Q21-F21),Tables!$E$27))) ->  | I21: Sample + Flask + H²O (D) | L21: | | O21: # 4 ( 4.75 mm) | P21: 54 | Q21: 68 | S21: 7
B22: # 8 (2.36 mm) | C22: ='Sublot 4'!C22 -> 44 | E22: =IF(D22="","",ROUND(D22/$E$34*100,Tables!$E$27)) ->  | G22: =IF(D22="","",IF(F22<$P22,ABS(F22-$P22),IF(F22>$Q22,ABS($Q22-F22),Tables!$E$27))) ->  | I22: C - D | J22: (E) | K22: =IF(K20="","",+K20-K21) ->  | L22: | | M22: =IF(M20="","",+M20-M21) ->  | O22: # 8 (2.36 mm) | P22: 39 | Q22: 49 | S22: 5
B23: # 16 ( 1.18 mm) | C23: ='Sublot 4'!C23 -> 32 | E23: =IF(D23="","",ROUND(D23/$E$34*100,Tables!$E$27)) ->  | G23: =IF(D23="","",IF(F23<$P23,ABS(F23-$P23),IF(F23>$Q23,ABS($Q23-F23),Tables!$E$27))) ->  | I23: Rice's Gravity | J23: (A/E) | K23: =IF(K18>0,ROUND(K18/K22,Tables!$E$40),"") ->  | L23: | | M23: =IF(M18>0,ROUND(M18/M22,Tables!$E$40),"") ->  | O23: # 16 ( 1.18 mm) | P23: 28 | Q23: 36 | S23: 4
B24: # 30 (.600 mm) | C24: ='Sublot 4'!C24 -> 23 | E24: =IF(D24="","",ROUND(D24/$E$34*100,Tables!$E$27)) ->  | G24: =IF(D24="","",IF(F24<$P24,ABS(F24-$P24),IF(F24>$Q24,ABS($Q24-F24),Tables!$E$27))) ->  | I24: Avg. Rice Gravity (Gmm) | L24: =IF(K23="","",ROUND(AVERAGE(K23,M23),Tables!$E$41)) ->  | M24: =IF(K23="","",IF(ABS(K23-M23)>O13,"ERR","")) ->  | O24: # 30 (.600 mm) | P24: 19 | Q24: 27 | S24: 4
B25: # 50 (.300 mm) | C25: ='Sublot 4'!C25 -> 13 | E25: =IF(D25="","",ROUND(D25/$E$34*100,Tables!$E$27)) ->  | G25: =IF(D25="","",IF(F25<$P25,ABS(F25-$P25),IF(F25>$Q25,ABS($Q25-F25),Tables!$E$27))) ->  | I25: Eff. Spec. Grav. (Gse) | L25: =IF(K18>0,ROUND((100-F30)/((100/L24)-(F30/$I$13)),Tables!$E$42),"") ->  | O25: # 50 (.300 mm) | P25: 9 | Q25: 17 | S25: 4
B26: # 100 (.150 mm) | C26: ='Sublot 4'!C26 -> 7 | E26: =IF(D26="","",ROUND(D26/$E$34*100,Tables!$E$27)) ->  | G26: =IF(D26="","",IF(F26<$P26,ABS(F26-$P26),IF(F26>$Q26,ABS($Q26-F26),Tables!$E$27))) ->  | J26: =IF(K23="","",IF(ABS(K23-M23)>O13,"ERR = Precision Out of Tolerance","")) ->  | O26: # 100 (.150 mm) | P26: 4 | Q26: 10 | S26: 3
B27: # 200 (.075 mm) | C27: ='Sublot 4'!C27 -> 4.4 | I27: LAB MOLDED DENSITY (OHD L-8, L-14) @ Ndes
B28: Total -200 (W3) | F28: =IF(E34="","",ROUND((E38/E34)*100,Tables!$E$28)) ->  | G28: =IF(D27="","",IF(F28<$P28,ROUND($P28-F28,Tables!$E$28),IF(F28>$Q28,ROUND(F28-$Q28,Tables!$E$28),0))) ->  | I28: New Gsb ( calculated ) | L28: =IF(L25="","",ROUND(IF(I11="","",(I12/I11)*L25),Tables!$E$44)) ->  | O28: Total -200 (W3) | P28: =IF(C27="","",C27-S28) -> 2.4 | Q28: =IF(C27="","",C27+S28) -> 6.4 | S28: 2
B29: % AC (P5m) | C29: ='Sublot 4'!C29 -> 4.9 | I29: Spec. Grav. AC | L29: =IF(K33="","",$I13) -> 
B30: Corrected %AC | C30: . | F30: =IF(D29="","",ROUND(((((D29*F43)/100)-(F43-F44))/F44)*100,Tables!$E$29)) ->  | G30: =IF(D29="","",IF(ABS(C29-F30)>S30,ROUND(ABS(C29-F30),Tables!$E$33),0)) ->  | I30: % AC | L30: =IF(K33="","",+F30) ->  | O30: Corrected %AC | P30: =IF(C29="","",C29-S30) -> 4.5 | Q30: =IF(C29="","",C29+S30) -> 5.3 | S30: 0.4
B31: Basket (A) | I31: Max. Theo. Spec. Grav. | L31: =IF(D29="","",IF($L$24="",ROUND((100/(($F$30/$I$13)+(100-$F$30)/#REF!)),Tables!$E$45),L24)) -> 
B32: Basket + Mix (B) | I32: Specimen No. | K32: 1 | L32: 2
B33: Mix (B-A) | E33: =IF(E31="","",+E32-E31) ->  | I33: A (Wt. Spec. in Air)
B34: Extr. Aggr. Wt (C) | D34: =IF(D31="","",+D31+D32) ->  | I34: C (Wt. Spec. in Water
B35: Washed Wt (D) | I35: B (Wt. Spec. S.S.D.)
B36: Pan Matl (E) | I36: B - C | K36: =IF(K33="","",+K35-K34) ->  | L36: =IF(L33="","",+L35-L34) ->  | M36: =IF(M33="","",+M35-M34) -> 
B37: Wt of Loss by Washing (W1) | E37: =IF(E35="","",E34-E35) ->  | I37: L.M. Spec. Grav. - Gmb | K37: =IF(K33=0,"",ROUND((K33/K36),Tables!$E$46)) ->  | L37: =IF(L33=0,"",ROUND((L33/L36),Tables!$E$46)) ->  | M37: =IF(M33=0,"",ROUND((M33/M36),Tables!$E$46)) -> 
B38: Total Agg. Passing 200 (W2) | E38: =IF(E36="","",+E37+E36) ->  | I38: Avg. L.M. Spec. Grav. | L38: =IF(K37="","",ROUND(AVERAGE(K37,L37,M37),Tables!$E$47)) -> 
B39: Precision (+/- 0.2 %) | E39: =IF(E35="","",ROUND(((E35-(D27+E36))/E35)*100,Tables!$E$30)) ->  | I39: % L.M. Density @ Ndes | L39: =IF(L38="","",ROUND(L38/L31*100,Tables!$E$48)) ->  | M39: =IF(L39="","",IF(OR(ROUND(L39,1)<O39,ROUND(L39,1)>Q39),"ERR","")) ->  | O39: ='Sublot 1'!O39 -> 94.5 | P39: - | Q39: ='Sublot 1'!Q39 -> 97.4 | R39: Enter %Density of GMM reqd. as listed on JMF
I40: % Air Voids | L40: =IF(L39="","",ROUND(100-(L38/L31*100),Tables!$E$49)) ->  | M40: =IF(L40="","",ABS(O40-L40)) ->  | O40: ='Sublot 1'!O40 -> 4 | Q40: %Air Voids Target | T40: (Superpave, SMA) = 4%, (RBL) = 2%
B41: MOISTURE & VOLATILE SAMPLE | I41: % V.M.A. | L41: =IF(L38="","",IF(L38>0,ROUND(100-L38*(100-L30)/L28,Tables!$E$50),Tables!E50)) ->  | M41: =IF(L41="","",IF(L41<O41,"ERR","")) ->  | O41: ='Sublot 4'!O41 -> 14 | Q41: Enter required field VMA from mix design.
B42: Pan | I42: =IF(M39="ERR","%L.M. Density out of range","") ->  | L42: =IF(M41="ERR"," %VMA out of range","") -> 
B43: Original Mix (W1m) | F43: =IF(E43="","",E43-E42) ->  | I43: ROADWAY DENSITY (OHD L-14 / OHD L-45)
B44: Dry Mix (W5m) | F44: =IF(E44="","",E44-E42) ->  | I44: m = | K44: b =
I45: =IF(O45=""," Avg. Rice"," Max. Theo. at JMF AC") -> Max. Theo. at JMF AC | L45: =IF(L24="","",ROUND(L24,Tables!$E$52)) ->  | M45: Gmm | O45: =VLOOKUP(O8,GTable,5) -> 85.5 | P45: Nini Minimun Requirement
B46: SAND EQUIVALENT (AASHTO T-176) | I46: Specimen No. | K46: 1 | L46: 2 | M46: 3 | O46: =VLOOKUP(O8,GTable,7) -> 89 | P46: Nini Maximum Requirement
B47: S.E. No. | D47: 1 | E47: 2 | F47: =+IF(F48="","",3) ->  | I47: Station
B48: Sand Reading | I48: Expressway
B49: Clay Reading | H49: =IF(O49=1,"OHD L-14","") ->  | I49: Lane
B50: Sand Equivalent | D50: =IF(D49="","",ROUNDUP(MROUND(D48/D49*100,0.1),0)) ->  | E50: =IF(E49="","",ROUNDUP(MROUND(E48/E49*100,0.1),0)) ->  | F50: =IF(F49="","",ROUNDUP(MROUND(F48/F49*100,0.1),0)) ->  | I50: Shot # 1
B51: Average Sand Equivalent | E51: =IF(D50="","",ROUNDUP(MROUND(SUM(D50:F50)/COUNT(D50:F50),0.1),0)) ->  | I51: Shot # 2 | O51: 45 | P51: Minimum S.E. Requirement
C52: =IF(E51=0,"",IF(E51<O50," Fails Minimum S.E. Requirements","")) ->  | I52: Shot # 3
B53: Lab Molded | C53: # of | D53: Specimen | E53: RATIO | F53: LSMG | G53: % Density | I53: Shot # 4
B54: Specimen | C54: Gyrations | D54: Height | E54: (Ht@Ndes | F54: (RATIO x | G54: (LSMG | I54: Avg. Unit Weight | K54: =IF(K51="","",AVERAGE(K50:K53)) ->  | L54: =IF(L51="","",AVERAGE(L50:L53)) ->  | M54: =IF(M51="","",AVERAGE(M50:M53)) -> 
B55: @ Ndes | E55: /Ht@Nini) | F55: LSMG @ | G55: X 100/ | I55: Nuclear Core Spec. Grav. | K55: =IF(K54="","",ROUND((K54/62.4)*$J$44+$L$44,Tables!$E$53)) ->  | L55: =IF(L54="","",ROUND((L54/62.4)*$J$44+$L$44,Tables!$E$53)) ->  | M55: =IF(M54="","",ROUND((M54/62.4)*$J$44+$L$44,Tables!$E$53)) ->  | O55: =COUNT(K54:M54) -> 0 | P55: No. of Cores
F56: Ndes) | G56: Rice's) | I56: Calc. Avg. Bulk Core Sp. Gr. | L56: =IF(K55="","",ROUND(SUM(((K55+L55+M55))/O55),Tables!$E$55)) -> 
B57: Nini | C57: =VLOOKUP(O8,GTable,2,FALSE) -> 8 | E57: =IF(D57="","",ROUND((D58/D57),Tables!$E$35)) ->  | F57: =IF(D57="","",ROUND((E57*F58),Tables!$E$36)) ->  | G57: =IF(AND(F58<>"",OR(D57="",D58="")),"ERR",IF(D58="","",ROUND(((F57*100)/$L$24),Tables!$E$37))) ->  | I57: % Roadway Density | K57: =IF(K55="","",ROUND(K55/$L$45*100,Tables!$E$56)) ->  | L57: =IF(L55="","",ROUND(L55/$L$45*100,Tables!$E$56)) ->  | M57: =IF(M55="","",ROUND(M55/$L$45*100,Tables!$E$56)) -> 
B58: Ndes | C58: =VLOOKUP(O8,GTable,3,FALSE) -> 100 | E58: 1 | F58: =IF(D58="","",L38) ->  | G58: =IF(D58="","",ROUND(((F58*100)/$L$24),Tables!$E$38)) ->  | I58: % Avg. Roadway Density | L58: =IF(L44="","",IF(L44>0,ROUND(L56/L45*100,Tables!$E$57),"")) -> 
C59: =(IF(G58="","",IF(OR($G$57="ERR",OR($G57>$O46,$G$57<$O$45))," Fails Nini Requirements",""))) ->  | J59: =IF(L58="","",IF(OR(L58>97,L58<88.1)," Fails Roadway Density Requirements","")) -> 
B61: Signature / Cert. ID | E61: /

Sheet Sublot 6
A1: ='Sublot 1'!A1 -> v 1.14 | B1: OKLAHOMA DEPARTMENT OF TRANSPORTATION
A2: SUPERPAVE
A3: McALESTER RESIDENCY
A4: HOT MIX ASPHALT SAMPLE SHEET
P5: INFORMATION FROM MIX DESIGN:
A6: Project No. | B6: =IF('Sublot 1'!B6="","",'Sublot 1'!B6) ->  | F6: J.P. No. | G6: =IF('Sublot 1'!G6="","",'Sublot 1'!G6) ->  | J6: Contract No. | L6: =IF('Sublot 1'!L6="","",'Sublot 1'!L6) -> 
A7: Contractor | B7: =IF('Sublot 1'!B7="","",'Sublot 1'!B7) ->  | F7: Producer | G7: =IF('Sublot 1'!G7="","",'Sublot 1'!G7) ->  | J7: Plant Location | L7: =IF('Sublot 1'!L7="","",'Sublot 1'!L7) -> 
A8: ='Sublot 1'!A8 -> SM Sample ID | F8: Mix Type | G8: =IF('Sublot 1'!G8="","",'Sublot 1'!G8) ->  | J8: Design No. | L8: =IF('Sublot 1'!L8="","",'Sublot 1'!L8) ->  | O8: ='Sublot 1'!O8 -> 3M+ | P8: Million ESALs or PG Grade: Select from drop-down list.
B10: EXTRACTIONS AND GRADATIONS | H10: IOC | J10: TOTAL TONS for this SubLOT
B11: (OHD L-26, AASHTO T-30, T-11) | H11: =IF('Sublot 1'!H11="","",'Sublot 1'!H11) -> 0.18 | I11: ='Sublot 1'!I11 -> 2.659 | J11: Gse from Design | L11: (Gse >= Gsb)
B12: Time | D12: Date | H12: Specimen Wt. | I12: ='Sublot 1'!I12 -> 2.612 | J12: Gsb from Design | O12: A | P12: Change for each sheet if A is not used on each. Rices Precision: Select from drop-down list.
B13: Temperature | D13: Lot | E13: =IF('Sublot 1'!E13="","",'Sublot 1'!E13) -> 1 | F13: SubLot | G13: 6 | H13: =IF('Sublot 1'!H13="","",'Sublot 1'!H13) -> 4700 | I13: ='Sublot 1'!I13 -> 1.01 | J13: Spec. Grav. AC from Design | O13: =VLOOKUP(O12,PTable,2,FALSE) -> 0.014 | P13: Method A - Mechanical or Method B - Manual
B14: SIEVE | C14: JMF | D14: Acc. Wt. | E14: Acc. % | F14: Total Agg. | I14: MAXIMUM SPECIFIC GRAVITY (AASHTO T209)
B15: SIZE | D15: Retd. | E15: Retd. | F15: % Passing | G15: Dev. | I15: Sub-Lot No. | P15: Limits | S15: Tolerance
B16: 1 1/2" (37.5 mm) | C16: ='Sublot 4'!C16 -> 100 | E16: =IF(D16="","",ROUND(D16/$E$34*100,Tables!$E$27)) ->  | F16: =IF(D16="","",100-E16) ->  | G16: =IF(D16="","",IF(F16<$P16,ABS(F16-$P16),IF(F16>$Q16,ABS($Q16-F16),Tables!$E$27))) ->  | I16: Sample No. | K16: 1 | L16: | | M16: 2 | O16: 1 1/2" (37.5 mm) | P16: =IF(C16="","",C16-S16) -> 100 | Q16: =IF(C16="","",IF(C16+S16>100,100,C16+S16)) -> 100 | S16: 0
B17: 1" (25.0 mm) | C17: ='Sublot 4'!C17 -> 100 | E17: =IF(D17="","",ROUND(D17/$E$34*100,Tables!$E$27)) ->  | G17: =IF(D17="","",IF(F17<$P17,ABS(F17-$P17),IF(F17>$Q17,ABS($Q17-F17),Tables!$E$27))) ->  | I17: Flask No. | L17: | | O17: 1" (25.0 mm) | P17: 100 | Q17: 100 | S17: 0
B18: 3/4" (19.0 mm | C18: ='Sublot 4'!C18 -> 100 | E18: =IF(D18="","",ROUND(D18/$E$34*100,Tables!$E$27)) ->  | G18: =IF(D18="","",IF(F18<$P18,ABS(F18-$P18),IF(F18>$Q18,ABS($Q18-F18),Tables!$E$27))) ->  | I18: Sample Wt. | J18: (A) | L18: | | O18: 3/4" (19.0 mm | P18: 100 | Q18: 100 | S18: 0
B19: 1/2" (12.5 mm) | C19: ='Sublot 4'!C19 -> 96 | E19: =IF(D19="","",ROUND(D19/$E$34*100,Tables!$E$27)) ->  | G19: =IF(D19="","",IF(F19<$P19,ABS(F19-$P19),IF(F19>$Q19,ABS($Q19-F19),Tables!$E$27))) ->  | I19: Calib. Wt. | J19: (B) | L19: | | O19: 1/2" (12.5 mm) | P19: 89 | Q19: 100 | S19: 7
B20: 3/8" (9.5 mm) | C20: ='Sublot 4'!C20 -> 86 | E20: =IF(D20="","",ROUND(D20/$E$34*100,Tables!$E$27)) ->  | G20: =IF(D20="","",IF(F20<$P20,ABS(F20-$P20),IF(F20>$Q20,ABS($Q20-F20),Tables!$E$27))) ->  | I20: A + B | J20: (C) | K20: =IF(K18="","",+K18+K19) ->  | L20: | | M20: =IF(M18="","",+M18+M19) ->  | O20: 3/8" (9.5 mm) | P20: 79 | Q20: 93 | S20: 7
B21: # 4 ( 4.75 mm) | C21: ='Sublot 4'!C21 -> 61 | E21: =IF(D21="","",ROUND(D21/$E$34*100,Tables!$E$27)) ->  | G21: =IF(D21="","",IF(F21<$P21,ABS(F21-$P21),IF(F21>$Q21,ABS($Q21-F21),Tables!$E$27))) ->  | I21: Sample + Flask + H²O (D) | L21: | | O21: # 4 ( 4.75 mm) | P21: 54 | Q21: 68 | S21: 7
B22: # 8 (2.36 mm) | C22: ='Sublot 4'!C22 -> 44 | E22: =IF(D22="","",ROUND(D22/$E$34*100,Tables!$E$27)) ->  | G22: =IF(D22="","",IF(F22<$P22,ABS(F22-$P22),IF(F22>$Q22,ABS($Q22-F22),Tables!$E$27))) ->  | I22: C - D | J22: (E) | K22: =IF(K20="","",+K20-K21) ->  | L22: | | M22: =IF(M20="","",+M20-M21) ->  | O22: # 8 (2.36 mm) | P22: 39 | Q22: 49 | S22: 5
B23: # 16 ( 1.18 mm) | C23: ='Sublot 4'!C23 -> 32 | E23: =IF(D23="","",ROUND(D23/$E$34*100,Tables!$E$27)) ->  | G23: =IF(D23="","",IF(F23<$P23,ABS(F23-$P23),IF(F23>$Q23,ABS($Q23-F23),Tables!$E$27))) ->  | I23: Rice's Gravity | J23: (A/E) | K23: =IF(K18>0,ROUND(K18/K22,Tables!$E$40),"") ->  | L23: | | M23: =IF(M18>0,ROUND(M18/M22,Tables!$E$40),"") ->  | O23: # 16 ( 1.18 mm) | P23: 28 | Q23: 36 | S23: 4
B24: # 30 (.600 mm) | C24: ='Sublot 4'!C24 -> 23 | E24: =IF(D24="","",ROUND(D24/$E$34*100,Tables!$E$27)) ->  | G24: =IF(D24="","",IF(F24<$P24,ABS(F24-$P24),IF(F24>$Q24,ABS($Q24-F24),Tables!$E$27))) ->  | I24: Avg. Rice Gravity (Gmm) | L24: =IF(K23="","",ROUND(AVERAGE(K23,M23),Tables!$E$41)) ->  | M24: =IF(K23="","",IF(ABS(K23-M23)>O13,"ERR","")) ->  | O24: # 30 (.600 mm) | P24: 19 | Q24: 27 | S24: 4
B25: # 50 (.300 mm) | C25: ='Sublot 4'!C25 -> 13 | E25: =IF(D25="","",ROUND(D25/$E$34*100,Tables!$E$27)) ->  | G25: =IF(D25="","",IF(F25<$P25,ABS(F25-$P25),IF(F25>$Q25,ABS($Q25-F25),Tables!$E$27))) ->  | I25: Eff. Spec. Grav. (Gse) | L25: =IF(K18>0,ROUND((100-F30)/((100/L24)-(F30/$I$13)),Tables!$E$42),"") ->  | O25: # 50 (.300 mm) | P25: 9 | Q25: 17 | S25: 4
B26: # 100 (.150 mm) | C26: ='Sublot 4'!C26 -> 7 | E26: =IF(D26="","",ROUND(D26/$E$34*100,Tables!$E$27)) ->  | G26: =IF(D26="","",IF(F26<$P26,ABS(F26-$P26),IF(F26>$Q26,ABS($Q26-F26),Tables!$E$27))) ->  | J26: =IF(K23="","",IF(ABS(K23-M23)>O13,"ERR = Precision Out of Tolerance","")) ->  | O26: # 100 (.150 mm) | P26: 4 | Q26: 10 | S26: 3
B27: # 200 (.075 mm) | C27: ='Sublot 4'!C27 -> 4.4 | I27: LAB MOLDED DENSITY (OHD L-8, L-14) @ Ndes
B28: Total -200 (W3) | F28: =IF(E34="","",ROUND((E38/E34)*100,Tables!$E$28)) ->  | G28: =IF(D27="","",IF(F28<$P28,ROUND($P28-F28,Tables!$E$28),IF(F28>$Q28,ROUND(F28-$Q28,Tables!$E$28),0))) ->  | I28: New Gsb ( calculated ) | L28: =IF(L25="","",ROUND(IF(I11="","",(I12/I11)*L25),Tables!$E$44)) ->  | O28: Total -200 (W3) | P28: =IF(C27="","",C27-S28) -> 2.4 | Q28: =IF(C27="","",C27+S28) -> 6.4 | S28: 2
B29: % AC (P5m) | C29: ='Sublot 4'!C29 -> 4.9 | I29: Spec. Grav. AC | L29: =IF(K33="","",$I13) -> 
B30: Corrected %AC | C30: . | F30: =IF(D29="","",ROUND(((((D29*F43)/100)-(F43-F44))/F44)*100,Tables!$E$29)) ->  | G30: =IF(D29="","",IF(ABS(C29-F30)>S30,ROUND(ABS(C29-F30),Tables!$E$33),0)) ->  | I30: % AC | L30: =IF(K33="","",+F30) ->  | O30: Corrected %AC | P30: =IF(C29="","",C29-S30) -> 4.5 | Q30: =IF(C29="","",C29+S30) -> 5.3 | S30: 0.4
B31: Basket (A) | I31: Max. Theo. Spec. Grav. | L31: =IF(D29="","",IF($L$24="",ROUND((100/(($F$30/$I$13)+(100-$F$30)/#REF!)),Tables!$E$45),L24)) -> 
B32: Basket + Mix (B) | I32: Specimen No. | K32: 1 | L32: 2
B33: Mix (B-A) | E33: =IF(E31="","",+E32-E31) ->  | I33: A (Wt. Spec. in Air)
B34: Extr. Aggr. Wt (C) | D34: =IF(D31="","",+D31+D32) ->  | I34: C (Wt. Spec. in Water
B35: Washed Wt (D) | I35: B (Wt. Spec. S.S.D.)
B36: Pan Matl (E) | I36: B - C | K36: =IF(K33="","",+K35-K34) ->  | L36: =IF(L33="","",+L35-L34) ->  | M36: =IF(M33="","",+M35-M34) -> 
B37: Wt of Loss by Washing (W1) | E37: =IF(E35="","",E34-E35) ->  | I37: L.M. Spec. Grav. - Gmb | K37: =IF(K33=0,"",ROUND((K33/K36),Tables!$E$46)) ->  | L37: =IF(L33=0,"",ROUND((L33/L36),Tables!$E$46)) ->  | M37: =IF(M33=0,"",ROUND((M33/M36),Tables!$E$46)) -> 
B38: Total Agg. Passing 200 (W2) | E38: =IF(E36="","",+E37+E36) ->  | I38: Avg. L.M. Spec. Grav. | L38: =IF(K37="","",ROUND(AVERAGE(K37,L37,M37),Tables!$E$47)) -> 
B39: Precision (+/- 0.2 %) | E39: =IF(E35="","",ROUND(((E35-(D27+E36))/E35)*100,Tables!$E$30)) ->  | I39: % L.M. Density @ Ndes | L39: =IF(L38="","",ROUND(L38/L31*100,Tables!$E$48)) ->  | M39: =IF(L39="","",IF(OR(ROUND(L39,1)<O39,ROUND(L39,1)>Q39),"ERR","")) ->  | O39: ='Sublot 1'!O39 -> 94.5 | P39: - | Q39: ='Sublot 1'!Q39 -> 97.4 | R39: Enter %Density of GMM reqd. as listed on JMF
I40: % Air Voids | L40: =IF(L39="","",ROUND(100-(L38/L31*100),Tables!$E$49)) ->  | M40: =IF(L40="","",ABS(O40-L40)) ->  | O40: ='Sublot 1'!O40 -> 4 | Q40: %Air Voids Target | T40: (Superpave, SMA) = 4%, (RBL) = 2%
B41: MOISTURE & VOLATILE SAMPLE | I41: % V.M.A. | L41: =IF(L38="","",IF(L38>0,ROUND(100-L38*(100-L30)/L28,Tables!$E$50),Tables!E50)) ->  | M41: =IF(L41="","",IF(L41<O41,"ERR","")) ->  | O41: ='Sublot 4'!O41 -> 14 | Q41: Enter required field VMA from mix design.
B42: Pan | I42: =IF(M39="ERR","%L.M. Density out of range","") ->  | L42: =IF(M41="ERR"," %VMA out of range","") -> 
B43: Original Mix (W1m) | F43: =IF(E43="","",E43-E42) ->  | I43: ROADWAY DENSITY (OHD L-14 / OHD L-45)
B44: Dry Mix (W5m) | F44: =IF(E44="","",E44-E42) ->  | I44: m = | K44: b =
I45: =IF(O45=""," Avg. Rice"," Max. Theo. at JMF AC") -> Max. Theo. at JMF AC | L45: =IF(L24="","",ROUND(L24,Tables!$E$52)) ->  | M45: Gmm | O45: =VLOOKUP(O8,GTable,5) -> 85.5 | P45: Nini Minimun Requirement
B46: SAND EQUIVALENT (AASHTO T-176) | I46: Specimen No. | K46: 1 | L46: 2 | M46: 3 | O46: =VLOOKUP(O8,GTable,7) -> 89 | P46: Nini Maximum Requirement
B47: S.E. No. | D47: 1 | E47: 2 | F47: =+IF(F48="","",3) ->  | I47: Station
B48: Sand Reading | I48: Expressway
B49: Clay Reading | I49: Lane
B50: Sand Equivalent | D50: =IF(D49="","",ROUNDUP(MROUND(D48/D49*100,0.1),0)) ->  | E50: =IF(E49="","",ROUNDUP(MROUND(E48/E49*100,0.1),0)) ->  | F50: =IF(F49="","",ROUNDUP(MROUND(F48/F49*100,0.1),0)) ->  | I50: Shot # 1
B51: Average Sand Equivalent | E51: =IF(D50="","",ROUNDUP(MROUND(SUM(D50:F50)/COUNT(D50:F50),0.1),0)) ->  | I51: Shot # 2 | O51: 45 | P51: Minimum S.E. Requirement
C52: =IF(E51=0,"",IF(E51<O50," Fails Minimum S.E. Requirements","")) ->  | I52: Shot # 3
B53: Lab Molded | C53: # of | D53: Specimen | E53: RATIO | F53: LSMG | G53: % Density | I53: Shot # 4
B54: Specimen | C54: Gyrations | D54: Height | E54: (Ht@Ndes | F54: (RATIO x | G54: (LSMG | I54: Avg. Unit Weight | K54: =IF(K51="","",AVERAGE(K50:K53)) ->  | L54: =IF(L51="","",AVERAGE(L50:L53)) ->  | M54: =IF(M51="","",AVERAGE(M50:M53)) -> 
B55: @ Ndes | E55: /Ht@Nini) | F55: LSMG @ | G55: X 100/ | I55: Nuclear Core Spec. Grav. | K55: =IF(K54="","",ROUND((K54/62.4)*$J$44+$L$44,Tables!$E$53)) ->  | L55: =IF(L54="","",ROUND((L54/62.4)*$J$44+$L$44,Tables!$E$53)) ->  | M55: =IF(M54="","",ROUND((M54/62.4)*$J$44+$L$44,Tables!$E$53)) ->  | O55: =COUNT(K54:M54) -> 0 | P55: No. of Cores
F56: Ndes) | G56: Rice's) | I56: Calc. Avg. Bulk Core Sp. Gr. | L56: =IF(K55="","",ROUND(SUM(((K55+L55+M55))/O55),Tables!$E$55)) -> 
B57: Nini | C57: =VLOOKUP(O8,GTable,2,FALSE) -> 8 | E57: =IF(D57="","",ROUND((D58/D57),Tables!$E$35)) ->  | F57: =IF(D57="","",ROUND((E57*F58),Tables!$E$36)) ->  | G57: =IF(AND(F58<>"",OR(D57="",D58="")),"ERR",IF(D58="","",ROUND(((F57*100)/$L$24),Tables!$E$37))) ->  | I57: % Roadway Density | K57: =IF(K55="","",ROUND(K55/$L$45*100,Tables!$E$56)) ->  | L57: =IF(L55="","",ROUND(L55/$L$45*100,Tables!$E$56)) ->  | M57: =IF(M55="","",ROUND(M55/$L$45*100,Tables!$E$56)) -> 
B58: Ndes | C58: =VLOOKUP(O8,GTable,3,FALSE) -> 100 | E58: 1 | F58: =IF(D58="","",L38) ->  | G58: =IF(D58="","",ROUND(((F58*100)/$L$24),Tables!$E$38)) ->  | I58: % Avg. Roadway Density | L58: =IF(L44="","",IF(L44>0,ROUND(L56/L45*100,Tables!$E$57),"")) -> 
C59: =(IF(G58="","",IF(OR($G$57="ERR",OR($G57>$O46,$G$57<$O$45))," Fails Nini Requirements",""))) ->  | J59: =IF(L58="","",IF(OR(L58>97,L58<88.1)," Fails Roadway Density Requirements","")) -> 
B61: Signature / Cert. ID | E61: /

Sheet Pay Factors
B1: ='Sublot 1'!A1 -> v 1.14 | D1: OKLAHOMA DEPARTMENT OF TRANSPORTATION
B2: ASPHALT CONCRETE PAVING
B3: PROJECT NO: | C3: =IF('Sublot 1'!B6="","",'Sublot 1'!B6) ->  | F3: COUNTY: | J3: DATE:
B5: CONTRACTOR: | C5: =IF('Sublot 1'!B7="","",'Sublot 1'!B7) ->  | G5: ASPHALT DESIGN NO: | I5: =IF('Sublot 1'!L8="","",'Sublot 1'!L8) -> 
B9: ID | E9: LOT NO. | F9: ='Sublot 1'!E13 -> 1 | I9: Total Tons | J9: =SUM('Sublot 1'!I10,'Sublot 2'!I10,'Sublot 3'!I10,'Sublot 4'!I10,'Sublot 5'!I10,'Sublot 6'!I10) -> 4000
B12: DESIGN | D12: ="SUBLOT " &'Sublot 1'!G13 -> SUBLOT 1 | E12: ="SUBLOT " &'Sublot 2'!G13 -> SUBLOT 2 | F12: ="SUBLOT " &'Sublot 3'!G13 -> SUBLOT 3 | G12: ="SUBLOT " &'Sublot 4'!G13 -> SUBLOT 4 | H12: ="SUBLOT " &'Sublot 5'!G13 -> SUBLOT 5 | I12: ="SUBLOT " &'Sublot 6'!G13 -> SUBLOT 6 | J12: PFs | K12: Reason to Waive PF
B13: SIEVE SIZE | C13: JMF | D13: Test Result | E13: Test Result | F13: Test Result | G13: Test Result | H13: Test Result | I13: Test Result
B14: 1" | C14: =IF('Sublot 1'!$C$17="","",'Sublot 1'!$C$17) -> 100 | D14: =IF('Sublot 1'!$F$17="","",'Sublot 1'!$F$17) -> 100 | E14: =IF('Sublot 2'!$F$17="","",'Sublot 2'!$F$17) -> 100 | F14: =IF('Sublot 3'!$F$17="","",'Sublot 3'!$F$17) -> 100 | G14: =IF('Sublot 4'!$F$17="","",'Sublot 4'!$F$17) -> 100 | H14: =IF('Sublot 5'!$F$17="","",'Sublot 5'!$F$17) ->  | I14: =IF('Sublot 6'!$F$17="","",'Sublot 6'!$F$17) -> 
B15: 3/4" | C15: =IF('Sublot 1'!$C$18="","",'Sublot 1'!$C$18) -> 100 | D15: =IF('Sublot 1'!$F$18="","",'Sublot 1'!$F$18) -> 100 | E15: =IF('Sublot 2'!$F$18="","",'Sublot 2'!$F$18) -> 100 | F15: =IF('Sublot 3'!$F$18="","",'Sublot 3'!$F$18) -> 100 | G15: =IF('Sublot 4'!$F$18="","",'Sublot 4'!$F$18) -> 100 | H15: =IF('Sublot 5'!$F$18="","",'Sublot 5'!$F$18) ->  | I15: =IF('Sublot 6'!$F$18="","",'Sublot 6'!$F$18) -> 
B16: 1/2" | C16: =IF('Sublot 1'!$C$19="","",'Sublot 1'!$C$19) -> 96 | D16: =IF('Sublot 1'!$F$19="","",'Sublot 1'!$F$19) -> 99 | E16: =IF('Sublot 2'!$F$19="","",'Sublot 2'!$F$19) -> 98 | F16: =IF('Sublot 3'!$F$19="","",'Sublot 3'!$F$19) -> 97 | G16: =IF('Sublot 4'!$F$19="","",'Sublot 4'!$F$19) -> 97 | H16: =IF('Sublot 5'!$F$19="","",'Sublot 5'!$F$19) ->  | I16: =IF('Sublot 6'!$F$19="","",'Sublot 6'!$F$19) -> 
B17: 3/8" | C17: =IF('Sublot 1'!$C$20="","",'Sublot 1'!$C$20) -> 86 | D17: =IF('Sublot 1'!$F$20="","",'Sublot 1'!$F$20) -> 92 | E17: =IF('Sublot 2'!$F$20="","",'Sublot 2'!$F$20) -> 88 | F17: =IF('Sublot 3'!$F$20="","",'Sublot 3'!$F$20) -> 87 | G17: =IF('Sublot 4'!$F$20="","",'Sublot 4'!$F$20) -> 83 | H17: =IF('Sublot 5'!$F$20="","",'Sublot 5'!$F$20) ->  | I17: =IF('Sublot 6'!$F$20="","",'Sublot 6'!$F$20) -> 
B18: No. 4 | C18: =IF('Sublot 1'!$C$21="","",'Sublot 1'!$C$21) -> 61 | D18: =IF('Sublot 1'!$F$21="","",'Sublot 1'!$F$21) -> 74 | E18: =IF('Sublot 2'!$F$21="","",'Sublot 2'!$F$21) -> 66 | F18: =IF('Sublot 3'!$F$21="","",'Sublot 3'!$F$21) -> 65 | G18: =IF('Sublot 4'!$F$21="","",'Sublot 4'!$F$21) -> 64 | H18: =IF('Sublot 5'!$F$21="","",'Sublot 5'!$F$21) ->  | I18: =IF('Sublot 6'!$F$21="","",'Sublot 6'!$F$21) -> 
B19: No. 8 | C19: =IF('Sublot 1'!$C$22="","",'Sublot 1'!$C$22) -> 44 | D19: =IF('Sublot 1'!$F$22="","",'Sublot 1'!$F$22) -> 55 | E19: =IF('Sublot 2'!$F$22="","",'Sublot 2'!$F$22) -> 45 | F19: =IF('Sublot 3'!$F$22="","",'Sublot 3'!$F$22) -> 45 | G19: =IF('Sublot 4'!$F$22="","",'Sublot 4'!$F$22) -> 45 | H19: =IF('Sublot 5'!$F$22="","",'Sublot 5'!$F$22) ->  | I19: =IF('Sublot 6'!$F$22="","",'Sublot 6'!$F$22) -> 
B20: No. 16 | C20: =IF('Sublot 1'!$C$23="","",'Sublot 1'!$C$23) -> 32 | D20: =IF('Sublot 1'!$F$23="","",'Sublot 1'!$F$23) -> 39 | E20: =IF('Sublot 2'!$F$23="","",'Sublot 2'!$F$23) -> 32 | F20: =IF('Sublot 3'!$F$23="","",'Sublot 3'!$F$23) -> 33 | G20: =IF('Sublot 4'!$F$23="","",'Sublot 4'!$F$23) -> 33 | H20: =IF('Sublot 5'!$F$23="","",'Sublot 5'!$F$23) ->  | I20: =IF('Sublot 6'!$F$23="","",'Sublot 6'!$F$23) -> 
B21: No. 30 | C21: =IF('Sublot 1'!$C$24="","",'Sublot 1'!$C$24) -> 23 | D21: =IF('Sublot 1'!$F$24="","",'Sublot 1'!$F$24) -> 27 | E21: =IF('Sublot 2'!$F$24="","",'Sublot 2'!$F$24) -> 23 | F21: =IF('Sublot 3'!$F$24="","",'Sublot 3'!$F$24) -> 24 | G21: =IF('Sublot 4'!$F$24="","",'Sublot 4'!$F$24) -> 23 | H21: =IF('Sublot 5'!$F$24="","",'Sublot 5'!$F$24) ->  | I21: =IF('Sublot 6'!$F$24="","",'Sublot 6'!$F$24) -> 
B22: No. 50 | C22: =IF('Sublot 1'!$C$25="","",'Sublot 1'!$C$25) -> 13 | D22: =IF('Sublot 1'!$F$25="","",'Sublot 1'!$F$25) -> 15 | E22: =IF('Sublot 2'!$F$25="","",'Sublot 2'!$F$25) -> 13 | F22: =IF('Sublot 3'!$F$25="","",'Sublot 3'!$F$25) -> 14 | G22: =IF('Sublot 4'!$F$25="","",'Sublot 4'!$F$25) -> 13 | H22: =IF('Sublot 5'!$F$25="","",'Sublot 5'!$F$25) ->  | I22: =IF('Sublot 6'!$F$25="","",'Sublot 6'!$F$25) -> 
B23: No. 100 | C23: =IF('Sublot 1'!$C$26="","",'Sublot 1'!$C$26) -> 7 | D23: =IF('Sublot 1'!$F$26="","",'Sublot 1'!$F$26) -> 9 | E23: =IF('Sublot 2'!$F$26="","",'Sublot 2'!$F$26) -> 8 | F23: =IF('Sublot 3'!$F$26="","",'Sublot 3'!$F$26) -> 9 | G23: =IF('Sublot 4'!$F$26="","",'Sublot 4'!$F$26) -> 9 | H23: =IF('Sublot 5'!$F$26="","",'Sublot 5'!$F$26) ->  | I23: =IF('Sublot 6'!$F$26="","",'Sublot 6'!$F$26) -> 
B24: No. 200 | C24: =IF('Sublot 1'!$C$27="","",'Sublot 1'!$C$27) -> 4.4 | D24: =IF('Sublot 1'!$F$28="","",'Sublot 1'!$F$28) -> 6.1 | E24: =IF('Sublot 2'!$F$28="","",'Sublot 2'!$F$28) -> 5.6 | F24: =IF('Sublot 3'!$F$28="","",'Sublot 3'!$F$28) -> 6.1 | G24: =IF('Sublot 4'!$F$28="","",'Sublot 4'!$F$28) -> 5.4 | H24: =IF('Sublot 5'!$F$28="","",'Sublot 5'!$F$28) ->  | I24: =IF('Sublot 6'!$F$28="","",'Sublot 6'!$F$28) -> 
B25: % AC | C25: =IF('Sublot 1'!$C$29="","",'Sublot 1'!$C$29) -> 4.9 | D25: =IF('Sublot 1'!$F$30="","",'Sublot 1'!$F$30) -> 5.3 | E25: =IF('Sublot 2'!$F$30="","",'Sublot 2'!$F$30) -> 4.8 | F25: =IF('Sublot 3'!$F$30="","",'Sublot 3'!$F$30) -> 4.8 | G25: =IF('Sublot 4'!$F$30="","",'Sublot 4'!$F$30) -> 4.8 | H25: =IF('Sublot 5'!$F$30="","",'Sublot 5'!$F$30) ->  | I25: =IF('Sublot 6'!$F$30="","",'Sublot 6'!$F$30) ->  | J25: =IFERROR(PFPWL(C25,D25:I25,0.4,-0.4),"") -> 1.05 | P25: Reasons: e.g. Mix is <1.5" thick, Mix is type PFC, OGFSC, OGBB with no roadway density requirement.
B26: % VMA | C26: =IF('Sublot 1'!$O$41="","",'Sublot 1'!$O$41) -> 14 | D26: =IF('Sublot 1'!$L$41="","",'Sublot 1'!$L$41) -> 14.7 | E26: =IF('Sublot 2'!$L$41="","",'Sublot 2'!$L$41) -> 13.9 | F26: =IF('Sublot 3'!$L$41="","",'Sublot 3'!$L$41) -> 13.3 | G26: =IF('Sublot 4'!$L$41="","",'Sublot 4'!$L$41) -> 13.7 | H26: =IF('Sublot 5'!$L$41="","",'Sublot 5'!$L$41) ->  | I26: =IF('Sublot 6'!$L$41="","",'Sublot 6'!$L$41) ->  | J26: =IFERROR(PFPWL(C26,D26:I26,3,-0.5),"") -> 0.87 | O26: Comp. | P26: <1.5" Thick | R26: Note: Not all reasons are valid for both density and air voids. Non-blank entries are 1.00 PF.
B27: % Air Voids | C27: =IF('Sublot 1'!$O$40="","",'Sublot 1'!$O$40) -> 4 | D27: =IF('Sublot 1'!$L$40="","",'Sublot 1'!$L$40) -> 3.9 | E27: =IF('Sublot 2'!$L$40="","",'Sublot 2'!$L$40) -> 4.1 | F27: =IF('Sublot 3'!$L$40="","",'Sublot 3'!$L$40) -> 3.5 | G27: =IF('Sublot 4'!$L$40="","",'Sublot 4'!$L$40) -> 4 | H27: =IF('Sublot 5'!$L$40="","",'Sublot 5'!$L$40) ->  | I27: =IF('Sublot 6'!$L$40="","",'Sublot 6'!$L$40) ->  | J27: =IFERROR(PFPWL(C27,D27:I27,1.35,-1.35),"") -> 1.05 | M27: <- Waive? | O27: =IFERROR(PFoldPWL(C27,D27:I27,1.35,1.35,0.75,-0.75),"") -> 0.6 | P27: PFC
B28: PGmm Core 1 | D28: =IF('Sublot 1'!$K$57="","",'Sublot 1'!$K$57) -> 95.5 | E28: =IF('Sublot 2'!$K$57="","",'Sublot 2'!$K$57) -> 91.5 | F28: =IF('Sublot 3'!$K$57="","",'Sublot 3'!$K$57) -> 93.3 | G28: =IF('Sublot 4'!$K$57="","",'Sublot 4'!$K$57) -> 93.8 | H28: =IF('Sublot 5'!$K$57="","",'Sublot 5'!$K$57) ->  | I28: =IF('Sublot 6'!$K$57="","",'Sublot 6'!$K$57) ->  | P28: OGFSC
B29: PGmm Core 2 | D29: =IF('Sublot 1'!$L$57="","",'Sublot 1'!$L$57) -> 92.4 | E29: =IF('Sublot 2'!$L$57="","",'Sublot 2'!$L$57) -> 92.2 | F29: =IF('Sublot 3'!$L$57="","",'Sublot 3'!$L$57) -> 94.2 | G29: =IF('Sublot 4'!$L$57="","",'Sublot 4'!$L$57) -> 92.2 | H29: =IF('Sublot 5'!$L$57="","",'Sublot 5'!$L$57) ->  | I29: =IF('Sublot 6'!$L$57="","",'Sublot 6'!$L$57) ->  | P29: OGBB
B30: PGmm Core 3 | D30: =IF('Sublot 1'!$M$57="","",'Sublot 1'!$M$57) -> 94 | E30: =IF('Sublot 2'!$M$57="","",'Sublot 2'!$M$57) -> 91.3 | F30: =IF('Sublot 3'!$M$57="","",'Sublot 3'!$M$57) -> 92.2 | G30: =IF('Sublot 4'!$M$57="","",'Sublot 4'!$M$57) -> 91.6 | H30: =IF('Sublot 5'!$M$57="","",'Sublot 5'!$M$57) ->  | I30: =IF('Sublot 6'!$M$57="","",'Sublot 6'!$M$57) ->  | O30: Comp. | P30: UTBWC
B31: Avg. PGmm | C31: =100-'Sublot 1'!$O$40-2 -> 94 | D31: =IF(D28="","",ROUND(AVERAGE(D28:D30),1)) -> 94 | E31: =IF(E28="","",ROUND(AVERAGE(E28:E30),1)) -> 91.7 | F31: 93.2 | G31: 92.5 | J31: =IFERROR(PFPWL(C31,D31:I31,3,-2),"") -> 0.92 | M31: <- Waive? | O31: =IFERROR(PFoldPWL(C31,D31:I31,3,-2.5,2,-1),"") -> 1.03
B32: Final PFs | C32: PGmm | D32: =IF(K31<>"",1,J31) -> 0.92 | E32: % Air Voids | F32: =IF(K27<>"",1,J27) -> 1.05 | G32: % AC | H32: =J25 -> 1.05 | I32: VMA | J32: =J26 -> 0.87
B33: CPF | C33: =IF(K31<>"",ROUND((4*J31+3*J27+2*J25+J26)/10,2),IFERROR(IF(COUNT(D28:I28)>2,ROUND((4*J31+3*J27+2*J25+J26)/10,2),""),"")) -> 0.98 | D33: CUP | E33: 63.81 | G33: Pay Adjustment on Lot | I33: =IF(OR(C33="",C33=0,E33=""),"",(C33-1)*E33*J9) -> -5104.8
R34: <-End Reasons
C35: =IF(OR(J25=0,J26=0,J27=0,J31=0),"*Remove and Replace or Accept using CPF.","") -> 
B36: Notes:
C51: Signature / Cert. ID | F51: /
DY230: {BRANCH O74}

Sheet Instructions
A1: REQUIRED DATA FOR CALCULATIONS: (Enter on Sublot 1 Tab only) | C1: Information:
A2: Sheet Sublot 1:
A3: Enter project information in the header cells B6 to L8. | C3: All data in blue text with yellow background is test data entry.
A5: Enter JMF gradations in cells C16 to C27.
A7: Enter JMF AC content in cell C29.
A9: Enter Tons for this Test Report in cell I9
A11: Enter Data from Design in cells I11 to I13
A13: Select the ESAL level or PG Grade in cell O8 using the dropdown selection list.
A15: Goto cells O39 and Q39 and enter %Density of GMM reqd. as listed on JMF.
A17: Goto cell O41 and enter min. %VMA as listed on JMF.
A19: Enter the SE limit in cell O51.
A21: Enter tolerances for gradataion and AC in cells S16 to S30.
A23: Enter 1 in cell O45 if PGmm by Pb at JMF in table 411:2. Leave blank if SP 411:17 on Contract or OHD L-14 modified after 5/27/2008.
A25: Enter Rice method type for each Sublot sheet. Mechanical method A is the default for all sublots unless changed on each.
A28: Sheet Pay Factors:
A29: Enter county in G3.
A31: Enter date in K3.
A33: Enter Contract Unit Price (CUP) in E33.
A35: In P31:P34 add reasons to use a PF of 1.00 if reasons above them need addition.
A37: Enter comments in C36 block.
A39: Enter ODOT Asphalt Certification ID number in G31.
A46: Revision history:
A47: 2014-12-07 | B47: - Made new Pay Factors sheet for PWL.
A49: 2016-02-17 | B49: - Revised Gradations to percentages on Pay Factors Sheet
A51: 2016-03-21 | B51: - Reset conditional formating on Dev. Column on Sublot 1 to Sublot 6 Tabs.
A53: 2016-06-07 | B53: - Fixed Contractor data on Pay Factors Tab..
A55: 2016-06-21 | B55: - Corrected %AC Deviation calculation on Sublot 1, Sublot 2, Sublot 3, Sublot 4, Sublot 5 & Sublot 6 in cell G30.
A57: 2018-10-24 | B57: - Added RIL-PG76E option to "Million ESALs or PG Grade" drop down list (cell O8) of "Sublot 1" sheet and added RIL-PG76E row and applicable specifications to "Special Provisions 708-3 and 2009 Standard Specifications" table on "Tables" sheet.

Sheet Tables
C1: Special Provision 708-3 and 2009 Standard Specifications:
C2: MESALs | D2: Nini | E2: Ndes | F2: Nmax | G2: MinNini | I2: MaxNini
C3: 0.3M- | D3: 6 | E3: 50 | F3: 75 | G3: 85.5 | I3: 91.5
C4: 0.3M+ | D4: 7 | E4: 75 | F4: 115 | G4: 85.5 | I4: 90.5
C5: 3M+ | D5: 8 | E5: 100 | F5: 160 | G5: 85.5 | I5: 89
C6: 10M+ | D6: 8 | E6: 100 | F6: 160 | G6: 85.5 | I6: 89
C7: 30M+ | D7: 9 | E7: 125 | F7: 205 | G7: 85.5 | I7: 89
C8: PG64 | D8: 6 | E8: 50 | F8: 96 | G8: 85.5 | I8: 91.5
C9: PG70 | D9: 7 | E9: 65 | F9: 96 | G9: 85.5 | I9: 90.5
C10: PG76 | D10: 8 | E10: 80 | F10: 96 | G10: 85.5 | I10: 89
C11: SMA-PG76 | D11: 0 | E11: 50 | F11: 96 | G11: 0 | I11: 0
C12: PFC-PG76 | D12: 0 | E12: 50 | F12: 96 | G12: 0 | I12: 0
C13: RBL-PG64 | D13: 0 | E13: 50 | F13: 96 | G13: 0 | I13: 0
C14: RIL-PG76E | D14: 0 | E14: 50 | F14: 97 | G14: 0 | I14: 0
C17: AASHTO T-209-12 Rices Precision
C18: Method | D18: Tolerance
C19: A | D19: 0.014
C20: B | D20: 0.018
C25: ROUNDING
A27: Cells E16 thru E26 | C27: Gradation % Ret. & Dev. | E27: 0 | F27: E27
A28: Cells F28 | C28: Gradation #200 & Dev. | E28: 1 | F28: E28
A29: Cell F30 | C29: Corrected % AC | E29: 1 | F29: E29
A30: Cell E39 | C30: Precision (+/- 0.2 %) | E30: 1 | F30: E30
A31: Cells E50, F50 | C31: Sand Equivalent | E31: 1 | F31: E31
C32: DENSITY (OHD L-45)
A33: Cells D60, E60, F60 | C33: Core Spec. Grav. ( Gmb ) | E33: 3 | F33: E33
C34: LAB MOLDED @ Ndes
A35: Cell E57 | C35: NINI Ratio | E35: 4 | F35: E35
A36: Cell F57 | C36: NINI LSMG | E36: 3 | F36: E36
A37: Cell G57 | C37: NINI % Density | E37: 1 | F37: E37
A38: Cell G58 | C38: Ndes % Density | E38: 1 | F38: E38
C39: MAX. SPECIFIC GRAVITY
A40: Cells K23, M23 | C40: Rice's Gravity | E40: 3 | F40: E40
A41: Cell L24 | C41: Avg. Rice Gravity (Gmm) | E41: 3 | F41: E41
A42: Cell L25 | C42: Eff. Spec. Grav. (Gse) | E42: 3 | F42: E42
C43: LAB MOLDED DENSITY
A44: Cell L28 | C44: New Gsb ( calculated ) | E44: 3 | F44: E44
A45: Cell L31 | C45: Max. Theo. Spec. Grav. | E45: 3 | F45: E45
A46: Cells K37, L37, M37 | C46: L.M. Spec. Grav. - Gmb | E46: 3 | F46: E46
A47: Cell L38 | C47: Avg. L.M. Spec. Grav. | E47: 3 | F47: E47
A48: Cell L39 | C48: % L.M. Density @ Ndes | E48: 1 | F48: E48
A49: Cell L40 | C49: % Air Voids | E49: =H49 -> 1 | F49: E49 | H49: =IF('Sublot 1'!O44=1,2,1) -> 1
A50: Cell L41 | C50: % V.M.A. | E50: 1 | F50: E50
C51: ROADWAY DENSITY
A52: Cell L45 | C52: Max. Theo. Sp. Gr. at JMF | E52: 3 | F52: E52
A53: Cells K55, L55, M55 | C53: Nuclear Core Spec. Grav. | E53: 3 | F53: E53
A55: Cell L56 | C55: Avg. Core Sp. Gr. ( Gmb ) | E55: 3 | F55: E55
A56: Cells K57, L57, M57 | C56: % Roadway Density | E56: 1 | F56: E56
A57: Cell L58 | C57: % Avg. Roadway Density | E57: 1 | F57: E57

Sheet Disclaimer
A1: By using this file, you are agreeing to this License Agreement:
A3: The Oklahoma Department of Transportation (ODOT) does not provide technical support with respect to these files. Read the following disclaimer for terms of use pior to using this file.
A6: ODOT makes no warranty of any kind, express or implied, with respect to any file. ODOT makes no warranty that any file is marketable or fit for any particular purpose. A description of a file shall not be deemed to create an express warranty that the file conforms to that description. You agree to accept the files in the format provided.
A9: You assume all risk and liability for any losses, damages, claims, or expenses resulting from the use or possession of any file.
A12: You agree to indemnify, defend, and hold harmless ODOT and its officers, agents, and employees from and against any and all claims, suits, losses, damages, or costs, including reasonable attorney's fees, arising from or by reason of your use or possession of any file. This indemnification shall survive your acceptance of any file.
A15: Revisions or additions may occur at any time. You agree to indemnify, defend, and hold harmless ODOT and its officers, agents, and employees from and against any and all claims, suits, losses, damages, or costs, including reasonable attorney's fees, arising from the use of outdated files. This indemnification shall survive your acceptance of any file.
A18: The files are copyrighted by ODOT and may not be resold without the express written consent of ODOT.
